Workbook

Sheet 总价汇总表
A1: 投标报价汇总表
A2: 工程名称：第四届中国绿化博览会游客服务中心、花园餐厅装饰装修专业分包工程
A3: 序号 | B3: 项目名称 | C3: 投标总价 | D3: 备注
A4: 一 | B4: 游客服务中心
A5: 1 | B5: 装饰工程 | C5: ='游客中心-装饰'!P259 -> 37228.30
A6: 2 | B6: 安装工程 | C6: ='游客中心-安装'!P113 -> 0.00
A7: 3 | B7: 措施费 | C7: =游客中心措施费!E13 -> 0.00
B8: 小计： | C8: =C7+C6+C5 -> 37228.30
A9: 二 | B9: 花园餐厅
A10: 1 | B10: 装饰工程 | C10: =花园餐厅装饰!P133 -> 67100.40
A11: 2 | B11: 安装工程 | C11: =花园餐厅安装!P91 -> 6635.48
A12: 3 | B12: 措施费 | C12: =花园餐厅措施费!E13 -> 0.00
B13: 小计： | C13: =C12+C11+C10 -> 73735.88
B14: 合计： | C14: =C13+C8 -> 110964.18
A16: 1、报价包含人工费（包括人员加班工资、差旅及窝工费）、材料费、机械费、管理费、利润、风险、规费、税金的包工包料价格，包含深化设计、监理资料及竣工图绘制费用，包括水电、卸货、材料保管、二次搬运、上楼、各种保险、加班、临时设施、赶工措施、已完工项目成品保护措施、夜间照明、安全文明施工等费用，施工人员的食宿费、劳保费用、办公费、生活生产水电费、保险费也包含在报价里,措施费按实际发生计取，不发生不计取。
A17: 2、投标人应充分踏勘现场，对各区域各节点施工作业条件充分认识，投标报价已充分考虑现场构件运输、堆放等条件，在报价中综合体现，进场施工后招标人不做任何补偿。
A18: 3、报价税率按9%考虑报价，提供9%税率的增值税专用发票。
B20: 投标单位（公章）：
B21: 授权委托人：
B22: 日 期： 2020 年 月 日

Sheet 游客中心-装饰
A1: 装饰工程量报价清单 | R1: 甲控乙供，主材价暂定，按质定价
A2: 工程名称：第四届中国绿博会游客服务中心装饰装修专业分包工程
A3: 序号 | B3: 分项工程名称 | C3: 项目特征 | D3: 单位 | E3: 数量 | F3: 主材名称 | G3: 综合单价 | H3: 其 中： | P3: 合价 | Q3: 备注
H4: 人工费 | I4: 材 料 费
I5: 主材费 | O5: 机械费
I6: 名称及规格 | J6: 单位 | K6: 单位耗量 | L6: 单价 | M6: 单位主材费合价 | N6: 辅材
A7: 1 | B7: 1游客服务大厅
A8: 2 | B8: 1.1游客服务大厅
A9: 3 | B9: 石材门槛石 | C9: 1.ST-01石材门槛石水泥砂浆粘贴。 | D9: m2 | E9: 1.8 | F9: 石材门槛石 | G9: =H9+M9+N9+O9 -> 0.00 | I9: ST-01石材 | J9: m2 | L9: / | M9: 0.00 | P9: =G9*E9 -> 0.00 | Q9: 石材甲供 | T9: 1
A10: 4 | B10: 石材楼地面 | C10: 1.ST-01灰色石材规格900*1200水泥砂浆铺贴。 | D10: m2 | E10: 433.37 | F10: 石材 | G10: =H10+N10+O10 -> 0.00 | I10: ST-01灰色石材 规格900*1200 | J10: m2 | L10: / | M10: / | P10: 0.00 | Q10: 石材甲供 | T10: 2
A11: 5 | B11: 金属踢脚线 | C11: 1.基层另计。 3.MT-05白色铝板饰面。 4.详见图纸ID-07/B | D11: m | E11: 41.78 | F11: 成品踢脚线 | G11: =H11+M11+N11+O11 -> 0.00 | I11: MT-05白色铝板饰面 | J11: m2 | M11: =L11*K11 -> 0.00 | P11: 0.00 | T11: 3
A12: 6 | B12: 格栅吊顶 | C12: 1.Φ8吊筋，M8膨胀螺栓固定。 2.轻钢主龙骨、副龙、连接件。 3.MT-03木纹铝方通，规格100*50。 4.详见图纸ID-07/A | D12: m2 | E12: 429.33 | F12: 铝方通 | G12: =H12+M12+N12+O12 -> 0.00 | I12: MT-03木纹铝方通 规格100*50 | J12: m | L12: 15 | M12: =L12*K12 -> 0.00 | P12: 0.00 | Q12: MT-03木纹铝方通甲控乙供，主材价暂定，按质定价 | T12: 4
A13: 7 | B13: 灯带（槽） | C13: 1.Φ8吊筋，M8膨胀螺栓固定。 2.轻钢主龙骨、副龙、连接件。 3.成品定制灯箱，规格150*80。 4.详见图纸ID-07/A | D13: m | E13: 277.84 | F13: 定制灯箱 | G13: =H13+N13+O13+M13 -> 0.00 | I13: 成品定制灯箱 规格150*80 | J13: m | L13: 180 | M13: =K13*L13 -> 0.00 | P13: 0.00 | Q13: 成品定制灯箱甲控乙供，主材价暂定，按质定价 | T13: 5
A14: 8 | B14: 天棚喷刷涂料 | C14: 1.原顶喷PT-03黑色乳胶漆。 | D14: m2 | E14: 551.2 | F14: 乳胶漆 | G14: =H14+M14+N14+O14 -> 0.00 | I14: 黑色乳胶漆 | J14: m2 | M14: =L14*K14 -> 0.00 | P14: 0.00 | T14: 6
A15: 9 | B15: 墙面装饰板 | C15: 1.基层龙骨另计。 3.铝扣板专用卡式龙骨。 4.MT-05铝板饰面。 | D15: m2 | E15: 172.65 | F15: 铝板 | G15: =H15+M15+N15+O15 -> 0.00 | I15: MT-05铝板 | J15: m2 | L15: 150 | M15: =L15*K15 -> 0.00 | P15: 0.00 | Q15: 铝板甲控乙供，主材价暂定，按质定价 | T15: 7
A16: 10 | B16: 服务台 | C16: 1.木制服务台，尺寸：7200*1100*1200 2.详见图纸ID-08 | D16: 个 | E16: 1 | F16: 木制服务台 | G16: =H16+M16+N16+O16 -> 0.00 | I16: 木制服务台 尺寸：7200*1100*1200 | J16: 个 | M16: =L16*K16 -> 0.00 | P16: 0.00 | T16: 10
A17: 11 | B17: 1.2游客服务大厅接待室 | P17: 0.00
A18: 12 | B18: 石材门槛石 | C18: 1.ST-01石材门槛石水泥砂浆粘贴。 | D18: m2 | E18: 1.08 | F18: 石材门槛石 | G18: =H18+M18+N18+O18 -> 0.00 | I18: ST-01石材 | J18: m2 | L18: / | M18: 0.00 | P18: 0.00 | Q18: 石材甲供 | T18: 11
A19: 13 | B19: 石材楼地面 | C19: 1.ST-01灰色石材规格900*1200水泥砂浆铺贴。 | D19: m2 | E19: 48.2 | F19: 石材 | G19: =H19+N19+O19 -> 0.00 | I19: ST-01灰色石材 规格900*1200 | J19: m2 | L19: / | M19: / | P19: 0.00 | Q19: 石材甲供 | T19: 12
A20: 14 | B20: 金属踢脚线 | C20: 1.金属踢脚线，高度50mm。 | D20: m | E20: 19.91 | F20: 成品踢脚线 | G20: =H20+M20+N20+O20 -> 0.00 | I20: 踢脚线 H50mm | J20: m | M20: =L20*K20 -> 0.00 | P20: 0.00 | T20: 13
A21: 15 | B21: 吊顶天棚 | C21: 1.Φ8吊筋，M8膨胀螺栓固定。 2.轻钢主龙骨、副龙、连接件。 3.双层9.5mm纸面石膏板。 | D21: m2 | E21: 48.2 | F21: 纸面石膏板 | G21: 0.00 | I21: 纸面石膏板9.5mm厚 | J21: m2 | M21: =L21*K21 -> 0.00 | P21: 0.00 | T21: 14
A22: 16 | B22: 灯带（槽） | C22: 1.Φ8吊筋，M8膨胀螺栓固定。 2.阻燃夹板、9.5mm纸面石膏板。 3.自粘胶带、腻子、乳胶漆另计。 4.尺寸280+120+80，详见图纸ID-07/04。 | D22: m | E22: 17.39 | F22: 纸面石膏板 | G22: 0.00 | I22: 纸面石膏板9.5mm厚 | J22: m2 | M22: =L22*K22 -> 0.00 | P22: 0.00 | T22: 15
A23: 17 | B23: 开孔（打洞） | C23: 1.石膏板开灯孔。 | D23: 个 | E23: 16 | G23: 0.00 | I23: / | L23: / | M23: 0.00 | P23: 0.00 | T23: 16
A24: 18 | B24: 开孔（打洞） | C24: 1.石膏板开出风口孔。 | D24: 个 | E24: 2 | G24: 0.00 | I24: / | L24: / | M24: 0.00 | P24: 0.00 | T24: 17
A25: 19 | B25: 送风口、回风口 | C25: 1.木基层风口基层。 2.木基层防火涂料。 3.成品风口其他单位施工 | D25: 个 | E25: 2 | G25: 0.00 | I25: / | L25: / | M25: 0.00 | P25: 0.00 | T25: 18
A26: 20 | B26: 弧形木窗帘盒 | C26: 1.Φ8吊筋，M8膨胀螺栓固定。 2.轻钢主龙骨、副龙、连接件。 3.阻燃夹板、9.5mm纸面石膏板。 4.自粘胶带、腻子、乳胶漆另计。 5.尺寸:200*200,详见图纸ID-07/02. | D26: m | E26: 11.36 | F26: 纸面石膏板 | G26: 0.00 | I26: 纸面石膏板9.5mm厚 | J26: m2 | M26: =L26*K26 -> 0.00 | P26: 0.00 | T26: 19
A27: 21 | B27: 木质门带套 | C27: 1.成品套装双开门，尺寸：1750*2380 2.门五金另计 | D27: 樘 | E27: 1 | F27: 成品套装门 | G27: 0.00 | I27: 成品套装双开门 尺寸：1750*2380 | J27: 樘 | M27: =L27*K27 -> 0.00 | P27: 0.00 | T27: 20
A28: 22 | B28: 1.3卫生间 | P28: 0.00
A29: 23 | B29: 1.3.1卫生间前室 | P29: 0.00
A30: 24 | B30: 石材门槛石 | C30: 1.ST-01石材门槛石水泥砂浆粘贴。 | D30: m2 | E30: 2.02 | F30: 石材门槛石 | G30: =H30+M30+N30+O30 -> 0.00 | I30: ST-01石材 | J30: m2 | L30: / | M30: 0.00 | P30: 0.00 | Q30: 石材甲供 | T30: 23
A31: 25 | B31: 石材楼地面 | C31: 1.ST-01灰色石材规格300*600水泥砂浆铺贴。 | D31: m2 | E31: 50.06 | F31: 石材 | G31: =H31+N31+O31 -> 0.00 | I31: ST-01灰色石材 规格300*600 | J31: m2 | L31: / | M31: / | P31: 0.00 | Q31: 石材甲供 | T31: 24
A32: 26 | B32: 吊顶天棚 | C32: 1.Φ8吊筋，M8膨胀螺栓固定。 2.轻钢主龙骨、副龙、连接件。 3.双层防水9.5mm纸面石膏板。 | D32: m2 | E32: 50.06 | F32: 纸面石膏板 | G32: =H32+M32+N32+O32 -> 0.00 | I32: 防水9.5mm纸面石膏板 | J32: m2 | M32: =L32*K32 -> 0.00 | P32: 0.00 | T32: 25
A33: 27 | B33: 开孔（打洞） | C33: 1.石膏板开灯孔。 | D33: 个 | E33: 22 | G33: =H33+M33+N33+O33 -> 0.00 | I33: / | L33: / | M33: 0.00 | P33: 0.00 | T33: 26
A34: 28 | B34: 石材墙面 | C34: 1.水泥砂浆粘贴。 2.ST-01灰色石材规格300*600 | D34: m2 | E34: 165.46 | F34: 石材 | G34: =H34+N34+O34 -> 0.00 | I34: ST-01灰色石材 规格300*600 | J34: m2 | L34: / | M34: / | P34: 0.00 | Q34: 石材甲供 | T34: 27
A35: 29 | B35: 成品木门窗套 | C35: 1.成品WD-01木饰面门套。 | D35: m | E35: 11.28 | F35: 成品门套 | G35: =H35+M35+N35+O35 -> 0.00 | I35: 成品WD-01木饰面门套 | J35: m | M35: =L35*K35 -> 0.00 | P35: 0.00 | T35: 28
A36: 30 | B36: 洗漱台 | C36: 1.高度250mm,挡水板高度50mm。 2.型钢骨架，ST-02白色石材饰面。 3.台盆开工、磨边，挡水条及阳角倒角、磨边。 4.详见图纸 | D36: m2 | E36: 9.8 | F36: 石材 | G36: =H36+M36+N36+O36 -> 0.00 | I36: ST-02白色石材 | J36: m2 | L36: 350 | M36: =L36*K36 -> 0.00 | P36: 0.00 | Q36: ST-02白色石材甲控乙供，主材价暂定，按质定价 | T36: 29
A37: 31 | B37: 卫生纸盒 | C37: 1.不锈钢纸盒 | D37: 个 | E37: 2 | F37: 不锈钢纸盒 | G37: =H37+M37+N37+O37 -> 0.00 | I37: 不锈钢纸盒 | J37: 个 | M37: =L37*K37 -> 0.00 | P37: 0.00 | T37: 30
A38: 32 | B38: 镜面玻璃 | C38: 1.MR-01银镜玻璃。 2.带框 | D38: m2 | E38: 9.14 | F38: 成品银镜 | G38: =H38+M38+N38+O38 -> 0.00 | I38: MR-01银镜玻璃 | J38: m2 | M38: =L38*K38 -> 0.00 | P38: 0.00 | T38: 31
A39: 33 | B39: 1.3.2第三卫生间 | P39: 0.00
A40: 34 | B40: 石材门槛石 | C40: 1.ST-01石材门槛石水泥砂浆粘贴。 | D40: m2 | E40: 0.36 | F40: 石材门槛石 | G40: =H40+M40+N40+O40 -> 0.00 | I40: ST-01石材 | J40: m2 | L40: / | M40: 0.00 | P40: 0.00 | Q40: 石材甲供 | T40: 33
A41: 35 | B41: 石材楼地面 | C41: 1.ST-01灰色石材规格300*600水泥砂浆铺贴。 | D41: m2 | E41: 10.62 | F41: 石材 | G41: =H41+N41+O41 -> 0.00 | I41: ST-01灰色石材 规格300*600 | J41: m2 | L41: / | M41: / | P41: 0.00 | Q41: 石材甲供 | T41: 34
A42: 36 | B42: 吊顶天棚 | C42: 1.Φ8吊筋，M8膨胀螺栓固定。 2.轻钢主龙骨、副龙、连接件。 3.双层防水9.5mm纸面石膏板。 | D42: m2 | E42: 10.62 | F42: 纸面石膏板 | G42: =H42+M42+N42+O42 -> 0.00 | I42: 防水9.5mm纸面石膏板 | J42: m2 | M42: =L42*K42 -> 0.00 | P42: 0.00 | T42: 35
A43: 37 | B43: 开孔（打洞） | C43: 1.石膏板开灯孔。 | D43: 个 | E43: 6 | G43: =H43+M43+N43+O43 -> 0.00 | I43: / | L43: / | M43: 0.00 | P43: 0.00 | T43: 36
A44: 38 | B44: 开孔（打洞） | C44: 1.石膏板开出风口孔。 | D44: 个 | E44: 2 | G44: =H44+M44+N44+O44 -> 0.00 | I44: / | L44: / | M44: 0.00 | P44: 0.00 | T44: 37
A45: 39 | B45: 送风口、回风口 | C45: 1.木基层风口基层。 2.木基层防火涂料。 3.成品风口其他单位施工 | D45: 个 | E45: 2 | G45: =H45+M45+N45+O45 -> 0.00 | I45: / | L45: / | M45: 0.00 | P45: 0.00 | T45: 38
A46: 40 | B46: 石材墙面 | C46: 1.水泥砂浆粘贴。 2.ST-01灰色石材规格300*600 | D46: m2 | E46: 49.84 | F46: 石材 | G46: =H46+N46+O46 -> 0.00 | I46: ST-01灰色石材 规格300*600 | J46: m2 | L46: / | M46: / | P46: 0.00 | Q46: 石材甲供 | T46: 39
A47: 41 | B47: 木质门带套 | C47: 1.成品套装双开门，尺寸：1150*2070 2.门五金另计 | D47: 樘 | E47: 1 | F47: 成品套装门 | G47: =H47+M47+N47+O47 -> 0.00 | I47: 成品套装双开门 尺寸：1150*2070 | J47: 樘 | M47: =L47*K47 -> 0.00 | P47: 0.00 | T47: 40
A48: 42 | B48: 卫生间扶手 | C48: 1.洗漱台残疾人扶手 | D48: 副 | E48: 1 | F48: 残疾人扶手 | G48: =H48+M48+N48+O48 -> 0.00 | I48: 残疾人扶手 | J48: 副 | M48: =L48*K48 -> 0.00 | P48: 0.00 | T48: 41
A49: 43 | B49: 卫生间扶手 | C49: 1.坐便器残疾人扶手 | D49: 副 | E49: 1 | F49: 残疾人扶手 | G49: =H49+M49+N49+O49 -> 0.00 | I49: 残疾人扶手 | J49: 副 | M49: =L49*K49 -> 0.00 | P49: 0.00 | T49: 42
A50: 44 | B50: 卫生纸盒 | C50: 1.不锈钢纸盒 | D50: 个 | E50: 2 | F50: 不锈钢纸盒 | G50: =H50+M50+N50+O50 -> 0.00 | I50: 不锈钢纸盒 | J50: 个 | M50: =L50*K50 -> 0.00 | P50: 0.00 | T50: 43
A51: 45 | B51: 镜面玻璃 | C51: 1.MR-01银镜玻璃。 2.带框 | D51: m2 | E51: 2.4 | F51: 成品银镜 | G51: =H51+M51+N51+O51 -> 0.00 | I51: MR-01银镜玻璃 | J51: m2 | M51: =L51*K51 -> 0.00 | P51: 0.00 | T51: 44
A52: 46 | B52: 1.3.3男、女卫生间 | P52: 0.00
A53: 47 | B53: 石材门槛石 | C53: 1.ST-01石材门槛石水泥砂浆粘贴。 | D53: m2 | E53: 0.44 | F53: 石材门槛石 | G53: =H53+M53+N53+O53 -> 0.00 | I53: ST-01石材 | J53: m2 | L53: / | M53: 0.00 | P53: 0.00 | Q53: 石材甲供 | T53: 46
A54: 48 | B54: 石材楼地面 | C54: 1.ST-01灰色石材规格300*600水泥砂浆铺贴。 | D54: m2 | E54: 67.98 | F54: 石材 | G54: =H54+N54+O54 -> 0.00 | I54: ST-01灰色石材 规格300*600 | J54: m2 | L54: / | M54: / | P54: 0.00 | Q54: 石材甲供 | T54: 47
A55: 49 | B55: 吊顶天棚 | C55: 1.Φ8吊筋，M8膨胀螺栓固定。 2.轻钢主龙骨、副龙、连接件。 3.双层防水9.5mm纸面石膏板。 4.自粘胶带、腻子、乳胶漆另计。 | D55: m2 | E55: 67.98 | F55: 纸面石膏板 | G55: =H55+M55+N55+O55 -> 0.00 | I55: 防水9.5mm纸面石膏板 | J55: m2 | M55: =L55*K55 -> 0.00 | P55: 0.00 | T55: 48
A56: 50 | B56: 灯带（槽） | C56: 1.Φ8吊筋，M8膨胀螺栓固定。 2.阻燃夹板、双层防水9.5mm纸面石膏板。 3.自粘胶带、腻子、乳胶漆另计。 5.尺寸300+120+80。 | D56: m | E56: 34.25 | F56: 纸面石膏板 | G56: =H56+M56+N56+O56 -> 0.00 | I56: 防水9.5mm纸面石膏板 | J56: m2 | M56: =L56*K56 -> 0.00 | P56: 0.00 | T56: 49
A57: 51 | B57: 开孔（打洞） | C57: 1.石膏板开灯孔。 | D57: 个 | E57: 7 | G57: =H57+M57+N57+O57 -> 0.00 | I57: / | L57: / | M57: 0.00 | P57: 0.00 | T57: 50
A58: 52 | B58: 开孔（打洞） | C58: 1.石膏板开出风口孔。 | D58: 个 | E58: 6 | G58: =H58+M58+N58+O58 -> 0.00 | I58: / | L58: / | M58: 0.00 | P58: 0.00 | T58: 51
A59: 53 | B59: 送风口、回风口 | C59: 1.木基层风口基层。 2.木基层防火涂料。 3.成品风口其他单位施工 | D59: 个 | E59: 6 | G59: =H59+M59+N59+O59 -> 0.00 | I59: / | L59: / | M59: 0.00 | P59: =G59*E59 -> 0.00 | T59: 52
A60: 54 | B60: 石材墙面 | C60: 1.水泥砂浆粘贴。 2.ST-01灰色石材规格300*600 | D60: m2 | E60: 207.65 | F60: 石材 | G60: =H60+N60+O60 -> 0.00 | I60: ST-01灰色石材 规格300*600 | J60: m2 | L60: / | M60: / | P60: 0.00 | Q60: 石材甲供 | T60: 53
A61: 55 | B61: 木质门带套 | C61: 1.成品套装单开门，尺寸：850*2070 2.门五金另计 | D61: 樘 | E61: 2 | F61: 成品套装门 | G61: 0.00 | I61: 成品套装单开门 尺寸：850*2070 | J61: 樘 | M61: =L61*K61 -> 0.00 | P61: 0.00 | T61: 54
A62: 56 | B62: 成品隔断 | C62: 1.卫生间蹲坑WD-01木饰面成品隔断间。 2.含五金。 | D62: 间 | E62: 26 | F62: 成品隔断 | G62: 0.00 | I62: WD-01木饰面成品隔断间 | J62: 间 | M62: 0.00 | P62: 0.00 | T62: 55
A63: 57 | B63: 成品隔断 | C63: 1.卫生间WD-01木饰面成品小便斗隔断。 | D63: 套 | E63: 7 | F63: 小便斗隔断 | G63: 0.00 | I63: 小便斗隔断 | J63: 套 | M63: 0.00 | P63: 0.00 | T63: 56
A64: 58 | B64: 卫生纸盒 | C64: 1.不锈钢纸盒 | D64: 个 | E64: 26 | F64: 不锈钢纸盒 | G64: 0.00 | I64: 不锈钢纸盒 | J64: 个 | M64: 0.00 | P64: 0.00 | T64: 57
A65: 59 | B65: 1.3.4清洁间 | P65: 0.00
A66: 60 | B66: 石材门槛石 | C66: 1.ST-01石材门槛石水泥砂浆粘贴。 | D66: m2 | E66: 0.25 | F66: 石材门槛石 | G66: =H66+M66+N66+O66 -> 0.00 | I66: ST-01石材 | J66: m2 | L66: / | M66: 0.00 | P66: 0.00 | Q66: 石材甲供 | T66: 59
A67: 61 | B67: 石材楼地面 | C67: 1.ST-01灰色石材规格300*600水泥砂浆铺贴。 | D67: m2 | E67: 4.6 | F67: 石材 | G67: =H67+N67+O67 -> 0.00 | I67: ST-01灰色石材 规格300*600 | J67: m2 | L67: / | M67: / | P67: 0.00 | Q67: 石材甲供 | T67: 60
A68: 62 | B68: 吊顶天棚 | C68: 1.Φ8吊筋，M8膨胀螺栓固定。 2.轻钢主龙骨、副龙、连接件。 3.双层防水9.5mm纸面石膏板。 4.自粘胶带、腻子、乳胶漆另计。 | D68: m2 | E68: 4.6 | F68: 纸面石膏板 | G68: =H68+M68+N68+O68 -> 0.00 | I68: 防水9.5mm纸面石膏板 | J68: m2 | M68: =L68*K68 -> 0.00 | P68: 0.00 | T68: 61
A69: 63 | B69: 开孔（打洞） | C69: 1.石膏板开灯孔。 | D69: 个 | E69: 2 | G69: =H69+M69+N69+O69 -> 0.00 | I69: / | L69: / | M69: 0.00 | P69: 0.00 | T69: 62
A70: 64 | B70: 石材墙面 | C70: 1.水泥砂浆粘贴。 2.ST-01灰色石材规格300*600 | D70: m2 | E70: 29.6 | F70: 石材 | G70: =H70+N70+O70 -> 0.00 | I70: ST-01灰色石材 规格300*600 | J70: m2 | L70: / | M70: / | P70: 0.00 | Q70: 石材甲供 | T70: 63
A71: 65 | B71: 木质门带套 | C71: 1.成品套装单开门，尺寸：850*2070 2.门五金另计 | D71: 樘 | E71: 1 | F71: 成品套装门 | G71: =H71+M71+N71+O71 -> 0.00 | I71: 成品套装单开门 尺寸：850*2070 | J71: 樘 | M71: =L71*K71 -> 0.00 | P71: 0.00 | T71: 64
A72: 66 | B72: 2纪念品商店 | P72: 0.00
A73: 67 | B73: 石材门槛石 | C73: 1.ST-01石材门槛石水泥砂浆粘贴。 | D73: m2 | E73: 1.38 | F73: 石材门槛石 | G73: =H73+M73+N73+O73 -> 0.00 | I73: ST-01石材 | J73: m2 | L73: / | M73: 0.00 | P73: 0.00 | Q73: 石材甲供 | T73: 65
A74: 68 | B74: 石材楼地面 | C74: 1.ST-01灰色石材规格900*1200水泥砂浆铺贴。 | D74: m2 | E74: 303.39 | F74: 石材 | G74: =H74+N74+O74 -> 0.00 | I74: ST-01灰色石材 规格900*1200 | J74: m2 | L74: / | M74: / | P74: =G74*E74 -> 0.00 | Q74: 石材甲供 | T74: 66
A75: 69 | B75: 地面成品灯带 | C75: 1.LED成品灯带，宽100mm。 | D75: m | E75: 58 | F75: 成品灯带 | G75: =H75+M75+N75+O75 -> 0.00 | I75: 地面成品灯带 | J75: m | M75: =L75*K75 -> 0.00 | P75: 0.00 | T75: 67
A76: 70 | B76: 金属踢脚线 | C76: 1.金属踢脚线，高度50mm。 | D76: m | E76: 8.17 | F76: 成品踢脚线 | G76: =H76+M76+N76+O76 -> 0.00 | I76: 踢脚线 H50mm | J76: m | M76: =L76*K76 -> 0.00 | P76: 0.00 | T76: 68
A77: 71 | B77: 格栅吊顶 | C77: 1.Φ8吊筋，M8膨胀螺栓固定。 2.轻钢主龙骨、副龙、连接件。 3.MT-03木纹铝方通，规格100*50。 4.详见图纸ID-07/A | D77: m2 | E77: 353.6 | F77: 铝方通 | G77: =H77+M77+N77+O77 -> 0.00 | I77: MT-03木纹铝方通 规格100*50 | J77: m | L77: 15 | M77: =L77*K77 -> 0.00 | P77: 0.00 | Q77: MT-03木纹铝方通甲控乙供，主材价暂定，按质定价 | T77: 69
A78: 72 | B78: 灯带（槽） | C78: 1.Φ8吊筋，M8膨胀螺栓固定。 2.轻钢主龙骨、副龙、连接件。 3.成品定制灯箱，规格150*80。 4.详见图纸ID-07/A。 | D78: m | E78: 190.63 | F78: 定制灯箱 | G78: =H78+N78+O78+M78 -> 0.00 | I78: 成品定制灯箱 规格150*80 | J78: m | L78: 180 | M78: =K78*L78 -> 0.00 | P78: 0.00 | Q78: 成品定制灯箱甲控乙供，主材价暂定，按质定价 | T78: 70
A79: 73 | B79: 天棚喷刷涂料 | C79: 1.原顶喷PT-03黑色乳胶漆。 | D79: m2 | E79: 408 | F79: 乳胶漆 | G79: =H79+M79+N79+O79 -> 0.00 | I79: 黑色乳胶漆 | J79: m2 | M79: =L79*K79 -> 0.00 | P79: 0.00 | T79: 71
A80: 74 | B80: 吧台背柜 | C80: 1.木龙骨、阻燃板基层。 2.木基层防火涂料。 3.纸面石膏板9.5mm面层。 4.尺寸：2800*1800 5.详见图纸IE-10/05、ID-6/02。 | D80: 个 | E80: 2 | F80: 吧台背柜 | G80: =H80+M80+N80+O80 -> 0.00 | I80: 吧台背柜2800*1800 | J80: 个 | M80: =L80*K80 -> 0.00 | P80: 0.00 | T80: 72
A81: 75 | B81: 吧台背柜 | C81: 1.木龙骨、阻燃板基层。 2.木基层防火涂料。 3.纸面石膏板9.5mm面层。 4.尺寸：2800*2100 5.详见图纸IE-10/05、ID-6/02。 | D81: 个 | E81: 1 | F81: 吧台背柜 | G81: =H81+M81+N81+O81 -> 0.00 | I81: 吧台背柜2800*2100 | J81: 个 | M81: =L81*K81 -> 0.00 | P81: 0.00 | T81: 73
A82: 76 | B82: 其他隔断 | C82: 1.木龙骨、细木工板18mm基层。 2.木基层防火涂料。 3.纸面石膏板9.5mm面层。 4.详见图纸IE-10/05、ID-6/02。 | D82: m2 | E82: 14.68 | F82: 纸面石膏板 | G82: =H82+M82+N82+O82 -> 0.00 | I82: 纸面石膏板9.5mm厚 | J82: m2 | M82: =L82*K82 -> 0.00 | P82: 0.00 | T82: 74
A83: 77 | B83: 3生态饮食餐厅 | P83: 0.00
A84: 78 | B84: 3.1一楼餐厅 | P84: 0.00
A85: 79 | B85: 3.1.1生态饮食餐厅 | P85: 0.00
A86: 80 | B86: 石材门槛石 | C86: 1.ST-01石材门槛石水泥砂浆粘贴。 | D86: m2 | E86: 2.16 | F86: 石材门槛石 | G86: =H86+M86+N86+O86 -> 0.00 | I86: ST-01石材 | J86: m2 | L86: / | M86: 0.00 | P86: 0.00 | Q86: 石材甲供 | T86: 76
A87: 81 | B87: 石材楼地面 | C87: 1.ST-01灰色石材规格900*1200水泥砂浆铺贴。 | D87: m2 | E87: 369.6 | F87: 石材 | G87: =H87+N87+O87 -> 0.00 | I87: ST-01灰色石材 规格900*1200 | J87: m2 | L87: / | M87: / | P87: 0.00 | Q87: 石材甲供 | T87: 77
A88: 82 | B88: 竹、木（复合）地板 | C88: 1.WD-02木地板。 2.防潮垫。 | D88: m2 | E88: 33.08 | F88: 木地板 | G88: =H88+M88+N88+O88 -> 0.00 | I88: WD-02木地板 | J88: m2 | L88: 100 | M88: =L88*K88 -> 0.00 | P88: 0.00 | Q88: WD-02木地板甲控乙供，主材价暂定，按质定价 | T88: 78
A89: 83 | B89: 格栅吊顶 | C89: 1.Φ8吊筋，M8膨胀螺栓固定。 2.轻钢主龙骨、副龙、连接件。 3.MT-03木纹铝方通，规格100*50。 4.详见图纸ID-07/A | D89: m2 | E89: 479.7 | F89: 铝方通 | G89: =H89+M89+N89+O89 -> 0.00 | I89: MT-03木纹铝方通 规格100*50 | J89: m | L89: 15 | M89: =L89*K89 -> 0.00 | P89: 0.00 | Q89: MT-03木纹铝方通甲控乙供，主材价暂定，按质定价 | T89: 79
A90: 84 | B90: 吊顶天棚 | C90: 1.Φ8吊筋，M8膨胀螺栓固定。 2.轻钢主龙骨、副龙、连接件。 3.细木工板基层，防火涂料。 4.MT-03木纹铝铝板粘贴。 | D90: m2 | E90: 29.61 | F90: 铝板 | G90: =H90+M90+N90+O90 -> 0.00 | I90: MT-03木纹铝铝板 | J90: m2 | L90: 180 | M90: =L90*K90 -> 0.00 | P90: 0.00 | Q90: 铝板甲控乙供，主材价暂定，按质定价 | T90: 80
A91: 85 | B91: 灯带（槽） | C91: 1.Φ8吊筋，M8膨胀螺栓固定。 2.轻钢主龙骨、副龙、连接件。 3.成品定制灯箱，规格150*80。 4.详见图纸ID-07/A。 | D91: m | E91: 157.34 | F91: 定制灯箱 | G91: =H91+N91+O91+M91 -> 0.00 | I91: 成品定制灯箱 规格150*80 | J91: m | L91: 180 | M91: =K91*L91 -> 0.00 | P91: 0.00 | Q91: 成品定制灯箱甲控乙供，主材价暂定，按质定价 | T91: 81
A92: 86 | B92: 天棚喷刷涂料 | C92: 1.原顶喷PT-03黑色乳胶漆。 | D92: m2 | E92: 551.2 | F92: 乳胶漆 | G92: =H92+M92+N92+O92 -> 0.00 | I92: 黑色乳胶漆 | J92: m2 | M92: =L92*K92 -> 0.00 | P92: 0.00 | T92: 82
A93: 87 | B93: 墙面装饰板 | C93: 1.MT-03木纹铝方通@200。 2.龙骨、基层板、石膏板另计。 3.详见图纸DS-03/03。 | D93: m2 | E93: 32.05 | F93: 铝方通 | G93: =H93+M93+N93+O93 -> 0.00 | I93: MT-03木纹铝方通 规格100*50 | J93: m | L93: 15 | M93: =L93*K93 -> 0.00 | P93: 0.00 | Q93: MT-03木纹铝方通甲控乙供，主材价暂定，按质定价 | T93: 83
A94: 88 | B94: 木饰面隔板 | C94: 1.WD-01木饰面，尺寸：400*60。 2.细木工板基层，防火涂料。 3.镀锌方管龙骨。 4.暗藏灯带。 5.详见图纸DS-03/01。 | D94: m | E94: 60.52 | F94: 木饰面 | G94: =H94+M94+N94+O94 -> 0.00 | I94: WD-01木饰面 | J94: m2 | L94: 320 | M94: =L94*K94 -> 0.00 | P94: 0.00 | Q94: WD-01木饰面甲控乙供，主材价暂定，按质定价 | T94: 86
A95: 89 | B95: 收银台 | C95: 1.WD-01木饰面弧形收银台。 2.详见图纸DS-06/01、DS-06/02。 | D95: 个 | E95: 1 | F95: 收银台 | G95: =H95+M95+N95+O95 -> 0.00 | I95: 收银台 | J95: 个 | M95: =L95*K95 -> 0.00 | P95: 0.00 | T95: 88
A96: 90 | B96: 吧台背柜 | C96: 1.WD-01木饰面弧形收银台背柜。 2.详见图纸DS-06/01、DS-06/02。 | D96: 个 | E96: 1 | F96: 吧台背柜 | G96: =H96+M96+N96+O96 -> 0.00 | I96: 弧形收银台背柜 | J96: 个 | M96: =L96*K96 -> 0.00 | P96: 0.00 | T96: 89
A97: 91 | B97: 3.1.2后厨、更衣室 | P97: 0.00
A98: 92 | B98: 石材门槛石 | C98: 1.ST-01石材门槛石水泥砂浆粘贴。 | D98: m2 | E98: 1.52 | F98: 石材门槛石 | G98: =H98+M98+N98+O98 -> 0.00 | I98: ST-01石材 | J98: m2 | L98: / | M98: 0.00 | P98: 0.00 | Q98: 石材甲供 | T98: 92
A99: 93 | B99: 块料楼地面 | C99: 1.CT-01白色地砖300*300水泥砂浆粘贴。 | D99: m2 | E99: 62.85 | F99: 地砖 | G99: =H99+N99+O99 -> 0.00 | I99: CT-01白色地砖 规格300*300 | J99: m2 | L99: / | M99: / | P99: 0.00 | Q99: 地砖主材甲供 | T99: 93
A100: 94 | B100: 块料楼地面 | C100: 1.CT-02灰色地砖300*300水泥砂浆粘贴。 | D100: m2 | E100: 12.81 | F100: 地砖 | G100: 0.00 | I100: CT-02灰色地砖 规格300*300 | J100: m2 | L100: / | M100: / | P100: 0.00 | Q100: 地砖主材甲供 | T100: 94
A101: 95 | B101: 块料踢脚线 | C101: 1.CT-01白色地砖踢脚线水泥砂浆粘贴。 | D101: m | E101: 28.63 | F101: 地砖踢脚线 | G101: 0.00 | I101: CT-01白色地砖踢脚 | J101: m | L101: / | M101: / | P101: 0.00 | Q101: 地砖踢脚线甲供 | T101: 95
A102: 96 | B102: 块料踢脚线 | C102: 1.CT-02灰色地砖踢脚线水泥砂浆粘贴。 | D102: m | E102: 19.62 | F102: 地砖踢脚线 | G102: 0.00 | I102: CT-02灰色地砖踢脚 | J102: m | L102: / | M102: / | P102: 0.00 | Q102: 地砖踢脚线甲供 | T102: 96
A103: 97 | B103: 吊顶天棚 | C103: 1.Φ8吊筋，M8膨胀螺栓固定。 2.铝合金扣板轻钢龙骨。 3.MT-04白色铝扣板吊顶。 | D103: m2 | E103: 29.24 | F103: 铝扣板 | G103: =H103+M103+N103+O103 -> 0.00 | I103: MT-04白色铝扣板 | J103: m2 | M103: =L103*K103 -> 0.00 | P103: 0.00 | T103: 97
A104: 98 | B104: 块料墙面 | C104: 1.300*600墙面墙砖水泥砂浆粘贴。 2.密封 | D104: m2 | E104: 51.97 | F104: 墙砖 | G104: =H104+M104+N104+O104 -> 0.00 | I104: 墙砖 规格300*600 | J104: m2 | L104: / | M104: 0.00 | P104: 0.00 | Q104: 墙砖甲供 | T104: 98
A105: 99 | B105: 石材窗台板 | C105: 1.石材窗台板专用粘接剂安装。 2.规格暂定120*40mm，倒角。 | D105: m2 | E105: 1.6 | F105: 石材窗台板 | G105: =H105+M105+N105+O105 -> 0.00 | I105: 石材窗台板 规格暂定120*40mm | J105: m2 | L105: 350 | M105: =L105*K105 -> 0.00 | P105: 0.00 | Q105: 石材窗台板甲控乙供，主材价暂定，按质定价 | T105: 100
A106: 100 | B106: 木质门带套 | C106: 1.成品套装单开门，尺寸：850*2070 2.门五金另计 | D106: 樘 | E106: 3 | F106: 成品套装门 | G106: =H106+M106+N106+O106 -> 0.00 | I106: 成品套装单开门 尺寸：850*2070 | J106: 樘 | M106: =L106*K106 -> 0.00 | P106: 0.00 | T106: 101
A107: 101 | B107: 木质门带套 | C107: 1.成品套装双开门，尺寸：1500*2100 2.门五金另计 | D107: 樘 | E107: 3 | F107: 成品套装门 | G107: =H107+M107+N107+O107 -> 0.00 | I107: 成品套装双开门 尺寸：1500*2100 | J107: 樘 | M107: =L107*K107 -> 0.00 | P107: 0.00 | T107: 102
A108: 102 | B108: 3.1.3电梯厅、洗碗间、预进间 | P108: 0.00
A109: 103 | B109: 石材门槛石 | C109: 1.ST-01石材门槛石水泥砂浆粘贴。 | D109: m2 | E109: 1.79 | F109: 石材门槛石 | G109: =H109+M109+N109+O109 -> 0.00 | I109: ST-01石材 | J109: m2 | L109: / | M109: 0.00 | P109: 0.00 | Q109: 石材甲供 | T109: 103
A110: 104 | B110: 块料楼地面 | C110: 1.CT-01白色地砖300*300水泥砂浆粘贴。 | D110: m2 | E110: 29.24 | F110: 地砖 | G110: =H110+N110+O110 -> 0.00 | I110: CT-01白色地砖 规格300*300 | J110: m2 | L110: / | M110: / | P110: 0.00 | Q110: 地砖主材甲供 | T110: 104
A111: 105 | B111: 块料踢脚线 | C111: 1.CT-01白色地砖踢脚线水泥砂浆粘贴。 | D111: m | E111: 31.8 | F111: 地砖踢脚线 | G111: =H111+N111+O111 -> 0.00 | I111: CT-01白色地砖踢脚 | J111: m | L111: / | M111: / | P111: 0.00 | Q111: 地砖踢脚线甲供 | T111: 105
A112: 106 | B112: 吊顶天棚 | C112: 1.Φ8吊筋，M8膨胀螺栓固定。 2.铝合金扣板轻钢龙骨。 3.MT-04白色铝扣板吊顶。 | D112: m2 | E112: 29.24 | F112: 铝扣板 | G112: =H112+M112+N112+O112 -> 0.00 | I112: MT-04白色铝扣板 | J112: m2 | M112: =L112*K112 -> 0.00 | P112: 0.00 | T112: 106
A113: 107 | B113: 石材窗台板 | C113: 1.石材窗台板专用粘接剂安装。 2.规格暂定120*40mm，倒角。 | D113: m2 | E113: 0.8 | F113: 石材窗台板 | G113: =H113+M113+N113+O113 -> 0.00 | I113: 石材窗台板 规格暂定120*40mm | J113: m2 | L113: 350 | M113: =L113*K113 -> 0.00 | P113: 0.00 | Q113: 石材窗台板甲控乙供，主材价暂定，按质定价 | T113: 108
A114: 108 | B114: 木质门带套 | C114: 1.成品套装双开门，尺寸：1500*2100 2.门五金另计 | D114: 樘 | E114: 2 | F114: 成品套装门 | G114: =H114+M114+N114+O114 -> 0.00 | I114: 成品套装双开门 尺寸：1500*2100 | J114: 樘 | M114: =L114*K114 -> 0.00 | P114: 0.00 | T114: 109
A115: 109 | B115: 3.1.4卫生间 | P115: 0.00
A116: 110 | B116: 石材门槛石 | C116: 1.ST-01石材门槛石水泥砂浆粘贴。 | D116: m2 | E116: 1.19 | F116: 石材门槛石 | G116: =H116+M116+N116+O116 -> 0.00 | I116: ST-01石材 | J116: m2 | L116: / | M116: 0.00 | P116: 0.00 | Q116: 石材甲供 | T116: 111
A117: 111 | B117: 石材楼地面 | C117: 1.ST-01灰色石材规格300*600水泥砂浆铺贴。 | D117: m2 | E117: 41.64 | F117: 石材 | G117: =H117+N117+O117 -> 0.00 | I117: ST-01灰色石材 规格300*600 | J117: m2 | L117: / | M117: / | P117: 0.00 | Q117: 石材甲供 | T117: 112
A118: 112 | B118: 吊顶天棚 | C118: 1.Φ8吊筋，M8膨胀螺栓固定。 2.轻钢主龙骨、副龙、连接件。 3.双层防水9.5mm纸面石膏板。 4.自粘胶带、腻子、乳胶漆另计。 | D118: m2 | E118: 41.64 | F118: 纸面石膏板 | G118: =H118+M118+N118+O118 -> 0.00 | I118: 防水9.5mm纸面石膏板 | J118: m2 | M118: =L118*K118 -> 0.00 | P118: 0.00 | T118: 113
A119: 113 | B119: 开孔（打洞） | C119: 1.石膏板开灯孔。 | D119: 个 | E119: 13 | G119: =H119+M119+N119+O119 -> 0.00 | I119: / | L119: / | M119: 0.00 | P119: 0.00 | T119: 114
A120: 114 | B120: 石材墙面 | C120: 1.水泥砂浆粘贴。 2.ST-01灰色石材规格300*600 | D120: m2 | E120: 123.32 | F120: 石材 | G120: =H120+N120+O120 -> 0.00 | I120: ST-01灰色石材 规格300*600 | J120: m2 | L120: / | M120: / | P120: 0.00 | Q120: 石材甲供 | T120: 115
A121: 115 | B121: 洗漱台 | C121: 1.高度250mm,挡水板高度50mm。 2.型钢骨架，ST-02白色石材饰面。 3.台盆开工、磨边，挡水条及阳角倒角、磨 边。 4.详见图纸 | D121: m2 | E121: 1.53 | F121: 石材 | G121: =H121+M121+N121+O121 -> 0.00 | I121: ST-02白色石材 | J121: m2 | L121: 350 | M121: =L121*K121 -> 0.00 | P121: 0.00 | Q121: ST-02白色石材甲控乙供，主材价暂定，按质定价 | T121: 116
A122: 116 | B122: 成品木门窗套 | C122: 1.成品WD-01木饰面门套。 | D122: m | E122: 6.84 | F122: 成品门套 | G122: 0.00 | I122: 成品WD-01木饰面门套 | J122: m | M122: 0.00 | P122: 0.00 | T122: 117
A123: 117 | B123: 木质门带套 | C123: 1.成品套装单开门，尺寸：850*2070 2.门五金另计 | D123: 樘 | E123: 4 | F123: 成品套装门 | G123: 0.00 | I123: 成品套装单开门 尺寸：850*2070 | J123: 樘 | M123: 0.00 | P123: 0.00 | T123: 118
A124: 118 | B124: 卫生纸盒 | C124: 1.不锈钢纸盒 | D124: 个 | E124: 8 | F124: 不锈钢纸盒 | G124: 0.00 | I124: 不锈钢纸盒 | J124: 个 | M124: 0.00 | P124: 0.00 | T124: 119
A125: 119 | B125: 镜面玻璃 | C125: 1.MR-01银镜玻璃。 2.带框 | D125: m2 | E125: 2.16 | F125: 成品银镜 | G125: 0.00 | I125: MR-01银镜玻璃 | J125: m2 | M125: 0.00 | P125: 0.00 | T125: 120
A126: 120 | B126: 卫生间扶手 | C126: 1.洗漱台残疾人扶手 | D126: 副 | E126: 1 | F126: 残疾人扶手 | G126: 0.00 | I126: 洗漱台残疾人扶手 | J126: 套 | M126: 0.00 | P126: 0.00 | T126: 121
A127: 121 | B127: 卫生间扶手 | C127: 1.坐便器残疾人扶手 | D127: 副 | E127: 1 | F127: 残疾人扶手 | G127: 0.00 | I127: 坐便器残疾人扶手 | J127: 套 | M127: 0.00 | P127: 0.00 | T127: 122
A128: 122 | B128: 成品隔断 | C128: 1.卫生间蹲坑WD-01木饰面成品隔断间。 2.含五金。 | D128: 间 | E128: 8 | F128: 成品隔断 | G128: 0.00 | I128: WD-01木饰面成品隔断间 | J128: 间 | M128: 0.00 | P128: 0.00 | T128: 123
A129: 123 | B129: 成品隔断 | C129: 1.卫生间WD-01木饰面成品小便斗隔断。 | D129: 套 | E129: 2 | F129: 小便斗隔断 | G129: 0.00 | I129: 小便斗隔断 | J129: 套 | M129: 0.00 | P129: 0.00 | T129: 124
A130: 124 | B130: 3.2二楼餐厅 | P130: 0.00
A131: 125 | B131: 3.2.1生态饮食餐厅、过道 | P131: 0.00
A132: 126 | B132: 石材门槛石 | C132: 1.ST-01石材门槛石水泥砂浆粘贴。 | D132: m2 | E132: 1.19 | F132: 石材门槛石 | G132: =H132+M132+N132+O132 -> 0.00 | I132: ST-01石材 | J132: m2 | L132: / | M132: 0.00 | P132: 0.00 | Q132: 石材甲供 | T132: 125
A133: 127 | B133: 石材楼地面 | C133: 1.ST-01灰色石材规格900*1200水泥砂浆铺贴。 | D133: m2 | E133: 441.85 | F133: 石材 | G133: =H133+N133+O133 -> 0.00 | I133: ST-01灰色石材 规格900*1200 | J133: m2 | L133: / | M133: / | P133: 0.00 | Q133: 石材甲供 | T133: 126
A134: 128 | B134: 格栅吊顶 | C134: 1.Φ8吊筋，M8膨胀螺栓固定。 2.轻钢主龙骨、副龙、连接件。 3.MT-03木纹铝方通，规格100*50。 4.详见图纸ID-07/A | D134: m2 | E134: 482.3 | F134: 铝方通 | G134: =H134+M134+N134+O134 -> 0.00 | I134: MT-03木纹铝方通 规格100*50 | J134: m | L134: 15 | M134: =L134*K134 -> 0.00 | P134: 0.00 | Q134: MT-03木纹铝方通甲控乙供，主材价暂定，按质定价 | T134: 127
A135: 129 | B135: 吊顶天棚 | C135: 1.Φ8吊筋，M8膨胀螺栓固定。 2.轻钢主龙骨、副龙、连接件。 3.细木工板基层，防火涂料。 4.MT-03木纹铝铝板粘贴。 | D135: m2 | E135: 31 | F135: 铝板 | G135: =H135+M135+N135+O135 -> 0.00 | I135: MT-03木纹铝铝板 | J135: m2 | L135: 180 | M135: =L135*K135 -> 0.00 | P135: 0.00 | Q135: 铝板甲控乙供，主材价暂定，按质定价 | T135: 128
A136: 130 | B136: 灯带（槽） | C136: 1.Φ8吊筋，M8膨胀螺栓固定。 2.轻钢主龙骨、副龙、连接件。 3.成品定制灯箱，规格150*80。 4.详见图纸ID-07/A | D136: m | E136: 157.72 | F136: 定制灯箱 | G136: =H136+N136+O136+M136 -> 0.00 | I136: 成品定制灯箱 规格150*80 | J136: m | L136: 180 | M136: =K136*L136 -> 0.00 | P136: 0.00 | Q136: 成品定制灯箱甲控乙供，主材价暂定，按质定价 | T136: 129
A137: 131 | B137: 天棚喷刷涂料 | C137: 1.原顶喷PT-03黑色乳胶漆。 | D137: m2 | E137: 625.3 | F137: 乳胶漆 | G137: =H137+M137+N137+O137 -> 0.00 | I137: 黑色乳胶漆 | J137: m2 | M137: =L137*K137 -> 0.00 | P137: 0.00 | T137: 130
A138: 132 | B138: 墙面装饰板 | C138: 1.MT-03木纹铝折型铝板：规格50*70mm。 2.铝扣板专用卡式龙骨 4.基层龙骨另计 5.详见图纸DS-04/02、DS-04/03、DS-05/02。 | D138: m2 | E138: 102.88 | F138: 铝板 | G138: =H138+M138+N138+O138 -> 0.00 | I138: MT-03木纹铝折型铝板 规格50*70mm | J138: m2 （展开） | L138: 190 | M138: =L138*K138 -> 0.00 | P138: =G138*E138 -> 0.00 | Q138: 铝板甲控乙供，主材价暂定，按质定价 | T138: 132
A139: 133 | B139: 墙面装饰板 | C139: 1.MT-03木纹铝板. 2.铝扣板专用卡式龙骨 4.基层龙骨另计 5.详见图纸DS-04/02、DS-04/03、DS-05/02。 | D139: m2 | E139: 20 | F139: 铝板 | G139: =H139+M139+N139+O139 -> 0.00 | I139: MT-03木纹铝板 | J139: m2 | L139: 180 | M139: =L139*K139 -> 0.00 | P139: 0.00 | Q139: 铝板甲控乙供，主材价暂定，按质定价 | T139: 133
A140: 134 | B140: 3.2.2包间（12座） | P140: 0.00
A141: 135 | B141: 石材门槛石 | C141: 1.ST-01石材门槛石水泥砂浆粘贴。 | D141: m2 | E141: 0.72 | F141: 石材门槛石 | G141: =H141+M141+N141+O141 -> 0.00 | I141: ST-01石材 | J141: m2 | L141: / | M141: 0.00 | P141: 0.00 | Q141: 石材甲供 | T141: 136
A142: 136 | B142: 竹、木（复合）地板 | C142: 1..WD-02木地板。 2.防潮垫。 | D142: m2 | E142: 40.95 | F142: 木地板 | G142: 0.00 | I142: WD-02木地板 | J142: m2 | L142: 100 | M142: =L142*K142 -> 0.00 | P142: 0.00 | Q142: WD-02木地板甲控乙供，主材价暂定，按质定价 | T142: 137
A143: 137 | B143: 木质踢脚线 | C143: 1.WD-02木地板踢脚线 | D143: m | E143: 126.03 | F143: 木地板踢脚线 | G143: 0.00 | I143: WD-02木地板踢脚线 | J143: m | M143: =L143*K143 -> 0.00 | P143: 0.00 | T143: 138
A144: 138 | B144: 吊顶天棚 | C144: 1.Φ8吊筋，M8膨胀螺栓固定。 2.轻钢主龙骨、副龙、连接件。 3.双层9.5mm纸面石膏板。 4.自粘胶带、腻子、乳胶漆另计。 | D144: m2 | E144: 40.95 | F144: 纸面石膏板 | G144: 0.00 | I144: 纸面石膏板9.5mm厚 | J144: m2 | M144: =L144*K144 -> 0.00 | P144: 0.00 | T144: 139
A145: 139 | B145: 圆形灯带（槽） | C145: 1.Φ8吊筋，M8膨胀螺栓固定。 2.阻燃夹板、9.5mm纸面石膏板。 3.自粘胶带、腻子、乳胶漆另计。 5.尺寸300+120+80。 | D145: m | E145: 7.47 | F145: 纸面石膏板 | G145: 0.00 | I145: 纸面石膏板9.5mm厚 | J145: m2 | M145: =L145*K145 -> 0.00 | P145: 0.00 | T145: 140
A146: 140 | B146: 开孔（打洞） | C146: 1.石膏板开灯孔。 | D146: 个 | E146: 6 | G146: 0.00 | I146: / | L146: / | M146: 0.00 | P146: 0.00 | T146: 141
A147: 141 | B147: 开孔（打洞） | C147: 1.石膏板开出风口孔。 | D147: 个 | E147: 2 | G147: 0.00 | I147: / | L147: / | M147: 0.00 | P147: 0.00 | T147: 142
A148: 142 | B148: 送风口、回风口 | C148: 1.木基层风口基层。 2.木基层防火涂料。 3.成品风口其他单位施工 | D148: 个 | E148: 2 | G148: 0.00 | I148: / | L148: / | M148: 0.00 | P148: 0.00 | T148: 143
A149: 143 | B149: 石材窗台板 | C149: 1.石材窗台板专用粘接剂安装。 2.规格暂定120*40mm，倒角。 | D149: m2 | E149: 1.2 | F149: 石材窗台板 | G149: 0.00 | I149: 石材窗台板 规格暂定120*40mm | J149: m2 | L149: 350 | M149: =L149*K149 -> 0.00 | P149: 0.00 | Q149: 石材窗台板甲控乙供，主材价暂定，按质定价 | T149: 145
A150: 144 | B150: 木质门带套 | C150: 1.成品套装双开门，尺寸：1500*2100 2.门五金另计 | D150: 樘 | E150: 2 | F150: 成品套装门 | G150: 0.00 | I150: 成品套装双开门 尺寸：1500*2100 | J150: 樘 | M150: =L150*K150 -> 0.00 | P150: 0.00 | T150: 146
A151: 145 | B151: 3.2.3包间（8座） | P151: 0.00
A152: 146 | B152: 石材门槛石 | C152: 1.ST-01石材门槛石水泥砂浆粘贴。 | D152: m2 | E152: 0.36 | F152: 石材门槛石 | G152: =H152+M152+N152+O152 -> 0.00 | I152: ST-01石材 | J152: m2 | L152: / | M152: 0.00 | P152: 0.00 | Q152: 石材甲供 | T152: 147
A153: 147 | B153: 竹、木（复合）地板 | C153: 1.WD-02木地板。 2.防潮垫。 | D153: m2 | E153: 33.92 | F153: 木地板 | G153: 0.00 | I153: WD-02木地板 | J153: m2 | L153: 100 | M153: =L153*K153 -> 0.00 | P153: 0.00 | Q153: WD-02木地板甲控乙供，主材价暂定，按质定价 | T153: 148
A154: 148 | B154: 木质踢脚线 | C154: 1.WD-02木地板踢脚线 | D154: m | E154: 22.63 | F154: 木地板踢脚线 | G154: 0.00 | I154: WD-02木地板踢脚线 | J154: m | M154: =L154*K154 -> 0.00 | P154: 0.00 | T154: 149
A155: 149 | B155: 吊顶天棚 | C155: 1.Φ8吊筋，M8膨胀螺栓固定。 2.轻钢主龙骨、副龙、连接件。 3.双层纸面石膏板。 4.自粘胶带、腻子、乳胶漆另计。 | D155: m2 | E155: 33.92 | F155: 纸面石膏板 | G155: 0.00 | I155: 纸面石膏板9.5mm厚 | J155: m2 | M155: =L155*K155 -> 0.00 | P155: 0.00 | T155: 150
A156: 150 | B156: 圆形灯带（槽） | C156: 1.Φ8吊筋，M8膨胀螺栓固定。 2.阻燃夹板、9.5mm纸面石膏板。 3.自粘胶带、腻子、乳胶漆另计。 5.尺寸300+120+80。 | D156: m | E156: 6.28 | F156: 纸面石膏板 | G156: 0.00 | I156: 纸面石膏板9.5mm厚 | J156: m2 | M156: =L156*K156 -> 0.00 | P156: 0.00 | T156: 151
A157: 151 | B157: 开孔（打洞） | C157: 1.石膏板开灯孔。 | D157: 个 | E157: 6 | G157: 0.00 | I157: / | L157: / | M157: 0.00 | P157: 0.00 | T157: 152
A158: 152 | B158: 开孔（打洞） | C158: 1.石膏板开出风口孔。 | D158: 个 | E158: 2 | G158: 0.00 | I158: / | L158: / | M158: 0.00 | P158: 0.00 | T158: 153
A159: 153 | B159: 送风口、回风口 | C159: 1.木基层风口基层。 2.木基层防火涂料。 3.成品风口其他单位施工 | D159: 个 | E159: 2 | G159: 0.00 | I159: / | L159: / | M159: 0.00 | P159: 0.00 | T159: 154
A160: 154 | B160: 石材窗台板 | C160: 1.石材窗台板专用粘接剂安装。 2.规格暂定120*40mm，倒角。 | D160: m2 | E160: 0.72 | F160: 石材窗台板 | G160: 0.00 | I160: 石材窗台板 规格暂定120*40mm | J160: m2 | L160: 350 | M160: =L160*K160 -> 0.00 | P160: 0.00 | Q160: 石材窗台板甲控乙供，主材价暂定，按质定价 | T160: 156
A161: 155 | B161: 木质门带套 | C161: 1.成品套装双开门，尺寸：1500*2100 2.门五金另计 | D161: 樘 | E161: 1 | F161: 成品套装门 | G161: 0.00 | I161: 成品套装双开门 尺寸：1500*2100 | J161: 樘 | M161: =L161*K161 -> 0.00 | P161: 0.00 | T161: 157
A162: 156 | B162: 3.2.4卫生间 | P162: 0.00
A163: 157 | B163: 石材门槛石 | C163: 1.ST-01石材门槛石水泥砂浆粘贴。 | D163: m2 | E163: 1.06 | F163: 石材门槛石 | G163: =H163+M163+N163+O163 -> 0.00 | I163: ST-01石材 | J163: m2 | L163: / | M163: 0.00 | P163: 0.00 | Q163: 石材甲供 | T163: 159
A164: 158 | B164: 石材楼地面 | C164: 1.ST-01灰色石材规格300*600水泥砂浆铺贴。 | D164: m2 | E164: 34.93 | F164: 石材 | G164: =H164+N164+O164 -> 0.00 | I164: ST-01灰色石材 规格300*600 | J164: m2 | L164: / | M164: / | P164: 0.00 | Q164: 石材甲供 | T164: 160
A165: 159 | B165: 吊顶天棚 | C165: 1.Φ8吊筋，M8膨胀螺栓固定。 2.轻钢主龙骨、副龙、连接件。 3.双层防水9.5mm纸面石膏板。 4.自粘胶带、腻子、乳胶漆另计。 | D165: m2 | E165: 34.93 | F165: 纸面石膏板 | G165: =H165+M165+N165+O165 -> 0.00 | I165: 防水9.5mm纸面石膏板 | J165: m2 | M165: =L165*K165 -> 0.00 | P165: 0.00 | T165: 161
A166: 160 | B166: 开孔（打洞） | C166: 1.石膏板开灯孔。 | D166: 个 | E166: 11 | G166: =H166+M166+N166+O166 -> 0.00 | I166: / | L166: / | M166: 0.00 | P166: 0.00 | T166: 162
A167: 161 | B167: 石材墙面 | C167: 1.水泥砂浆粘贴。 2.ST-01灰色石材规格300*600 | D167: m2 | E167: 99.4 | F167: 石材 | G167: =H167+N167+O167 -> 0.00 | I167: ST-01灰色石材 规格300*600 | J167: m2 | L167: / | M167: / | P167: 0.00 | Q167: 石材甲供 | T167: 163
A168: 162 | B168: 洗漱台 | C168: 1.高度250mm,挡水板高度50mm。 2.型钢骨架，ST-02白色石材饰面。 3.台盆开工、磨边，挡水条及阳角倒角、磨边。 4.详见图纸 | D168: m2 | E168: 1.6 | F168: 石材 | G168: =H168+M168+N168+O168 -> 0.00 | I168: ST-02白色石材 | J168: m2 | L168: 350 | M168: =L168*K168 -> 0.00 | P168: 0.00 | Q168: ST-02白色石材甲控乙供，主材价暂定，按质定价 | T168: 164
A169: 163 | B169: 成品木门窗套 | C169: 1.成品WD-01木饰面门套。 | D169: m | E169: 5.9 | F169: 成品门套 | G169: 0.00 | I169: 成品WD-01木饰面门套 | J169: m | M169: 0.00 | P169: 0.00 | T169: 165
A170: 164 | B170: 木质门带套 | C170: 1.成品套装单开门，尺寸：850*2070 2.门五金另计 | D170: 樘 | E170: 2 | F170: 成品套装门 | G170: 0.00 | I170: 成品套装单开门 尺寸：850*2070 | J170: 樘 | M170: 0.00 | P170: 0.00 | T170: 166
A171: 165 | B171: 卫生纸盒 | C171: 1.不锈钢纸盒 | D171: 个 | E171: 8 | F171: 不锈钢纸盒 | G171: 0.00 | I171: 不锈钢纸盒 | J171: 个 | M171: 0.00 | P171: 0.00 | T171: 167
A172: 166 | B172: 镜面玻璃 | C172: 1.MR-01银镜玻璃。 2.带框 | D172: m2 | E172: 1.36 | F172: 成品银镜 | G172: 0.00 | I172: MR-01银镜玻璃 | J172: m2 | M172: 0.00 | P172: 0.00 | T172: 168
A173: 167 | B173: 成品隔断 | C173: 1.卫生间蹲坑WD-01木饰面成品隔断间。 2.含五金。 | D173: 间 | E173: 8 | F173: 成品隔断 | G173: 0.00 | I173: WD-01木饰面成品隔断间 | J173: 间 | M173: 0.00 | P173: 0.00 | T173: 169
A174: 168 | B174: 成品隔断 | C174: 1.卫生间WD-01木饰面成品小便斗隔断。 | D174: 套 | E174: 2 | F174: 小便斗隔断 | G174: 0.00 | I174: 小便斗隔断 | J174: 套 | M174: 0.00 | P174: 0.00 | T174: 170
A175: 169 | B175: 3.2.5配菜间、更衣室 | P175: 0.00
A176: 170 | B176: 石材门槛石 | C176: 1.ST-01石材门槛石水泥砂浆粘贴。 | D176: m2 | E176: 2.5 | F176: 石材门槛石 | G176: =H176+M176+N176+O176 -> 0.00 | I176: ST-01石材 | J176: m2 | L176: / | M176: 0.00 | P176: 0.00 | Q176: 石材甲供 | T176: 171
A177: 171 | B177: 块料楼地面 | C177: 1.CT-01白色地砖300*300水泥砂浆粘贴。 | D177: m2 | E177: 41.73 | F177: 地砖 | G177: =H177+N177+O177 -> 0.00 | I177: CT-01白色地砖 规格300*300 | J177: m2 | L177: / | M177: / | P177: 0.00 | Q177: 地砖主材甲供 | T177: 172
A178: 172 | B178: 块料楼地面 | C178: 1.CT-02灰色地砖300*300水泥砂浆粘贴。 | D178: m2 | E178: 24.59 | F178: 地砖 | G178: =H178+N178+O178 -> 0.00 | I178: CT-02灰色地砖 规格300*300 | J178: m2 | L178: / | M178: / | P178: 0.00 | Q178: 地砖主材甲供 | T178: 173
A179: 173 | B179: 块料踢脚线 | C179: 1.CT-01白色地砖踢脚线水泥砂浆粘贴。 | D179: m | E179: 24.71 | F179: 地砖踢脚线 | G179: =H179+N179+O179 -> 0.00 | I179: CT-01白色地砖踢脚 | J179: m | L179: / | M179: / | P179: 0.00 | Q179: 地砖踢脚线甲供 | T179: 174
A180: 174 | B180: 块料踢脚线 | C180: 1.CT-02灰色地砖踢脚线水泥砂浆粘贴。 | D180: m | E180: 23.52 | F180: 地砖踢脚线 | G180: =H180+N180+O180 -> 0.00 | I180: CT-02灰色地砖踢脚 | J180: m | L180: / | M180: / | P180: 0.00 | Q180: 地砖踢脚线甲供 | T180: 175
A181: 175 | B181: 吊顶天棚 | C181: 1.Φ8吊筋，M8膨胀螺栓固定。 2.铝合金扣板轻钢龙骨。 3.MT-04白色铝扣板吊顶。 | D181: m2 | E181: 66.32 | F181: 铝扣板 | G181: =H181+M181+N181+O181 -> 0.00 | I181: MT-04白色铝扣板 | J181: m2 | M181: =L181*K181 -> 0.00 | P181: 0.00 | T181: 176
A182: 176 | B182: 石材窗台板 | C182: 1.石材窗台板专用粘接剂安装。 2.规格暂定120*40mm，倒角。 | D182: m2 | E182: 0.8 | F182: 石材窗台板 | G182: =H182+M182+N182+O182 -> 0.00 | I182: 石材窗台板 规格暂定120*40mm | J182: m2 | L182: 350 | M182: =L182*K182 -> 0.00 | P182: 0.00 | Q182: 石材窗台板甲控乙供，主材价暂定，按质定价 | T182: 178
A183: 177 | B183: 木质门带套 | C183: 1.成品套装双开门，尺寸：1500*2100 2.门五金另计 | D183: 樘 | E183: 3 | F183: 成品套装门 | G183: =H183+M183+N183+O183 -> 0.00 | I183: 成品套装双开门 尺寸：1500*2100 | J183: 樘 | M183: =L183*K183 -> 0.00 | P183: 0.00 | T183: 179
A184: 178 | B184: 木质门带套 | C184: 1.成品套装单开门，尺寸：850*2070 2.门五金另计 | D184: 樘 | E184: 2 | F184: 成品套装门 | G184: =H184+M184+N184+O184 -> 0.00 | I184: 成品套装单开门 尺寸：850*2070 | J184: 樘 | M184: =L184*K184 -> 0.00 | P184: 0.00 | T184: 180
A185: 179 | B185: 3.3办公室 | P185: 0.00
A186: 180 | B186: 石材门槛石 | C186: 1.ST-01石材门槛石水泥砂浆粘贴。 | D186: m2 | E186: 0.36 | F186: 石材门槛石 | G186: =H186+M186+N186+O186 -> 0.00 | I186: ST-01石材 | J186: m2 | L186: / | M186: 0.00 | P186: 0.00 | Q186: 石材甲供 | T186: 181
A187: 181 | B187: 块料楼地面 | C187: 1.CT-02灰色地砖600*600水泥砂浆粘贴。 | D187: m2 | E187: 56.09 | F187: 地砖 | G187: =H187+N187+O187 -> 0.00 | I187: CT-02灰色 地砖规格600*600 | J187: m2 | L187: / | M187: / | P187: 0.00 | Q187: 地砖主材甲供 | T187: 182
A188: 182 | B188: 块料踢脚线 | C188: 1.CT-02灰色地砖踢脚线水泥砂浆粘贴。 | D188: m | E188: 48.51 | F188: 地砖踢脚线 | G188: =H188+N188+O188 -> 0.00 | I188: CT-02灰色地砖踢脚 | J188: m | L188: / | M188: / | P188: 0.00 | Q188: 地砖踢脚线甲供 | T188: 183
A189: 183 | B189: 吊顶天棚 | C189: 1.Φ8吊筋，M8膨胀螺栓固定。 2.轻钢主龙骨、副龙、连接件。 3.双层9.5mm纸面石膏板。 4.自粘胶带、腻子、乳胶漆另计。 | D189: m2 | E189: 56.09 | F189: 纸面石膏板 | G189: =H189+M189+N189+O189 -> 0.00 | I189: 纸面石膏板9.5mm厚 | J189: m2 | M189: =L189*K189 -> 0.00 | P189: 0.00 | T189: 184
A190: 184 | B190: 开孔（打洞） | C190: 1.石膏板开灯孔。 | D190: 个 | E190: 12 | G190: =H190+M190+N190+O190 -> 0.00 | I190: / | L190: / | M190: 0.00 | P190: 0.00 | T190: 185
A191: 185 | B191: 送风口、回风口 | C191: 1.木基层风口基层。 2.木基层防火涂料。 3.成品风口其他单位施工 | D191: 个 | E191: 2 | G191: =H191+M191+N191+O191 -> 0.00 | I191: / | L191: / | M191: 0.00 | P191: 0.00 | T191: 186
A192: 186 | B192: 石材窗台板 | C192: 1.石材窗台板专用粘接剂安装。 2.规格暂定120*40mm，倒角。 | D192: m2 | E192: 1.6 | F192: 石材窗台板 | G192: =H192+M192+N192+O192 -> 0.00 | I192: 石材窗台板 规格暂定120*40mm | J192: m2 | L192: 350 | M192: =L192*K192 -> 0.00 | P192: 0.00 | Q192: 石材窗台板甲控乙供，主材价暂定，按质定价 | T192: 188
A193: 187 | B193: 金属扶手、栏杆、栏板 | C193: 1.楼梯栏杆扶手。 2.做法暂定。 | D193: m | E193: 50.3 | F193: 栏杆扶手 | G193: =M193 -> 400.00 | I193: 栏杆扶手（含安装） | J193: m | K193: 1 | L193: 400 | M193: =L193*K193 -> 400.00 | P193: 20120.00 | Q193: 栏杆扶手甲控乙供，单价暂定，按质定价 | T193: 189
A194: 188 | B194: 3.4楼梯间 | P194: 0.00
A195: 189 | B195: 石材门槛石 | C195: 1.ST-01石材门槛石水泥砂浆粘贴。 | D195: m2 | E195: 1.5 | F195: 石材门槛石 | G195: =H195+M195+N195+O195 -> 0.00 | I195: ST-01石材 | J195: m2 | L195: / | M195: 0.00 | P195: 0.00 | Q195: 石材甲供 | T195: 190
A196: 190 | B196: 块料楼地面 | C196: 1.CT-02灰色地砖600*600水泥砂浆粘贴。 | D196: m2 | E196: 63.31 | F196: 地砖 | G196: =H196+N196+O196 -> 0.00 | I196: CT-02灰色 地砖规格600*600 | J196: m2 | L196: / | M196: / | P196: 0.00 | Q196: 地砖主材甲供 | T196: 191
A197: 191 | B197: 块料台阶面 | C197: 1.CT-02灰色地砖600*600水泥砂浆粘贴。 2.嵌三道金属防滑条。 | D197: m2 | E197: 10.84 | F197: 地砖 | G197: =H197+N197+O197 -> 0.00 | I197: CT-02灰色 地砖规格600*600 | J197: m2 | L197: / | M197: / | P197: 0.00 | Q197: 地砖主材甲供 | T197: 192
A198: 192 | B198: 块料踢脚线 | C198: 1.CT-02灰色地砖踢脚线水泥砂浆粘贴。 2.水平段。 | D198: m | E198: 56.92 | F198: 地砖踢脚线 | G198: =H198+N198+O198 -> 0.00 | I198: CT-02灰色地砖踢脚 | J198: m | L198: / | M198: / | P198: 0.00 | Q198: 地砖踢脚线甲供 | T198: 193
A199: 193 | B199: 块料踢脚线 | C199: 1.CT-02灰色地砖踢脚线水泥砂浆粘贴。 2.踏步段，含三角板。 | D199: m | E199: 56.92 | F199: 地砖踢脚线 | G199: =H199+N199+O199 -> 0.00 | I199: CT-02灰色地砖踢脚 | J199: m | L199: / | M199: / | P199: 0.00 | Q199: 地砖踢脚线甲供 | T199: 194
A200: 194 | B200: 金属扶手、栏杆、栏板 | C200: 1.楼梯栏杆扶手。 2.做法暂定。 | D200: m | E200: 24.6 | F200: 栏杆扶手 | G200: =M200 -> 400.00 | I200: 栏杆扶手（含安装） | J200: m | K200: 1 | L200: 400 | M200: =L200*K200 -> 400.00 | P200: 9840.00 | Q200: 栏杆扶手甲控乙供，单价暂定，按质定价 | T200: 195
... 65 more rows

Sheet 游客中心-安装
A1: 安装工程量报价清单
A2: 工程名称：第四届中国绿博会游客服务中心装饰装修专业分包工程
A3: 序号 | B3: 分项工程名称 | C3: 项目特征 | D3: 单位 | E3: 数量 | F3: 主材名称 | G3: 综合单价 | H3: 其 中： | P3: 合价 | Q3: 备注
H4: 人工费 | I4: 材 料 费
I5: 主材费 | O5: 机械费
I6: 名称及规格 | J6: 单位 | K6: 单位耗量 | L6: 单价 | M6: 单位主材费合价 | N6: 辅材
A7: 1 | B7: 电气工程
A8: 2 | B8: 配电箱 | C8: 1.名称：消防柜配电箱4-1ATXK 2.规格：15kw,12回路，ATS-40A/4P PC级，详见图纸 3.安装方式：挂墙明装 | D8: 台 | E8: 1 | F8: 配电箱 | G8: =H8+M8+N8+O8 -> 0 | I8: 配电箱 | J8: 套 | L8: / | M8: 0 | P8: =G8*E8 -> 0.00 | Q8: 配电箱甲供
A9: 3 | B9: 配电箱 | C9: 1.名称：架空层配电箱4-1ALz5 2.规格：10kw,9回路，详见图纸 3.安装方式：挂墙明装 | D9: 台 | E9: 1 | F9: 配电箱 | G9: =H9+M9+N9+O9 -> 0 | I9: 配电箱 | J9: 套 | L9: / | M9: 0 | P9: =G9*E9 -> 0.00 | Q9: 配电箱甲供
A10: 4 | B10: 配电箱 | C10: 1.名称：广播室配电箱4-1ALgb 2.规格：10kw,9回路，ATS-40A/4P CB级，详见图纸 3.安装方式：挂墙明装 | D10: 台 | E10: 1 | F10: 配电箱 | G10: 0 | I10: 配电箱 | J10: 套 | L10: / | M10: 0 | P10: 0.00 | Q10: 配电箱甲供
A11: 5 | B11: 配电箱 | C11: 1.名称：办公医疗配电箱4-1ALbg 2.规格：20kw,11回路，详见图纸 3.安装方式：嵌墙暗装 | D11: 台 | E11: 1 | F11: 配电箱 | G11: 0 | I11: 配电箱 | J11: 套 | L11: / | M11: 0 | P11: 0.00 | Q11: 配电箱甲供
A12: 6 | B12: 配电箱 | C12: 1.名称：医疗照明配电箱4-1ALyl 2.规格：6kw,6回路，详见图纸 3.安装方式：嵌墙暗装 | D12: 台 | E12: 1 | F12: 配电箱 | G12: 0 | I12: 配电箱 | J12: 套 | L12: / | M12: 0 | P12: 0.00 | Q12: 配电箱甲供
A13: 7 | B13: 配电箱 | C13: 1.名称：餐厅照明总配电箱4-1ALz4 2.规格：50KW,22回路，ATS-160/4 PC级,详见图纸 3.安装方式：落地安装 | D13: 台 | E13: 1 | F13: 配电箱 | G13: 0 | I13: 配电箱 | J13: 套 | L13: / | M13: 0 | P13: 0.00 | Q13: 配电箱甲供
A14: 8 | B14: 配电箱 | C14: 1.名称：餐厅照明配电箱4-2AL1 2.规格：30kw,22回路，详见图纸 3.安装方式：挂墙明装 | D14: 台 | E14: 1 | F14: 配电箱 | G14: 0 | I14: 配电箱 | J14: 套 | L14: / | M14: 0 | P14: 0.00 | Q14: 配电箱甲供
A15: 9 | B15: 配电箱 | C15: 1.名称：食堂照明配电箱4-1AL1 2.规格：4kw,7回路，详见图纸 3.安装方式：嵌墙暗装 | D15: 台 | E15: 1 | F15: 配电箱 | G15: 0 | I15: 配电箱 | J15: 套 | L15: / | M15: 0 | P15: 0.00 | Q15: 配电箱甲供
A16: 10 | B16: 配电箱 | C16: 1.名称：餐厅保障负荷总箱4-1APZ、4-1APZE 2.规格：70kw,3回路，详见图纸 3.安装方式：嵌墙暗装 | D16: 台 | E16: 2 | F16: 配电箱 | G16: 0 | I16: 配电箱 | J16: 套 | L16: / | M16: 0 | P16: 0.00 | Q16: 配电箱甲供
A17: 11 | B17: 配电箱 | C17: 1.名称：餐厅公共照明配电箱4-2ATgg3 2.规格：10KW，12回路，ATS-63/4 PC级，详见图纸 3.安装方式：挂墙明装 | D17: 台 | E17: 1 | F17: 配电箱 | G17: 0 | I17: 配电箱 | J17: 套 | L17: / | M17: 0 | P17: 0.00 | Q17: 配电箱甲供
A18: 12 | B18: 配电箱 | C18: 1.名称：厨房配电箱4-2ATcf 2.规格：30KW，7回路，ATS-80/4 CB级，详见图纸 3.安装方式：挂墙明装 | D18: 台 | E18: 1 | F18: 配电箱 | G18: 0 | I18: 配电箱 | J18: 套 | L18: / | M18: 0 | P18: 0.00 | Q18: 配电箱甲供
A19: 13 | B19: 配电箱 | C19: 1.名称：电梯配电箱4-2ATdt 2.规格：30KW,7回路，ATS-160/4 PC级，详见图纸 3.安装方式：挂墙明装 | D19: 台 | E19: 1 | F19: 配电箱 | G19: 0 | I19: 配电箱 | J19: 套 | L19: / | M19: 0 | P19: 0.00 | Q19: 配电箱甲供
A20: 14 | B20: 配电箱 | C20: 1.名称：室外展厅配电箱4-1ALzl 2.规格：70KW，ATS-160/4 CB级，详见图纸 3.安装方式：落地安装 | D20: 台 | E20: 1 | F20: 配电箱 | G20: 0 | I20: 配电箱 | J20: 套 | L20: / | M20: 0 | P20: 0.00 | Q20: 配电箱甲供
A21: 15 | B21: 配电箱 | C21: 1.名称：室外展厅配电箱4-1APzl 2.规格：140KW，ATS-250/4 CB级，详见图纸 3.安装方式：落地安装 | D21: 台 | E21: 1 | F21: 配电箱 | G21: 0 | I21: 配电箱 | J21: 套 | L21: / | M21: 0 | P21: 0.00 | Q21: 配电箱甲供
A22: 16 | B22: 配电箱 | C22: 1.名称：半开放多媒体厅兼会议室配电箱4-1AL3 2.规格：20KW，ATS-63/4 CB级，详见图纸 3.安装方式：落地安装 | D22: 台 | E22: 1 | F22: 配电箱 | G22: 0 | I22: 配电箱 | J22: 套 | L22: / | M22: 0 | P22: 0.00 | Q22: 配电箱甲供
A23: 17 | B23: 配电箱 | C23: 1.名称：中央空调室外机组配电箱4-1APkt1 2.规格：70.65KW,5回路，详见图纸 3.安装方式：落地安装 | D23: 台 | E23: 1 | F23: 配电箱 | G23: 0 | I23: 配电箱 | J23: 套 | L23: / | M23: 0 | P23: 0.00 | Q23: 配电箱甲供
A24: 18 | B24: 配电箱 | C24: 1.名称：中央空调室外机组配电箱4-1APkt2 2.规格：36.02KW,3回路，详见图纸 3.安装方式：落地安装 | D24: 台 | E24: 1 | F24: 配电箱 | G24: 0 | I24: 配电箱 | J24: 套 | L24: / | M24: 0 | P24: 0.00 | Q24: 配电箱甲供
A25: 19 | B25: 配电箱 | C25: 1.名称：商店照明配电箱4-1ALz2 2.规格：32KW,18回路，详见图纸 3.安装方式：挂墙明装 | D25: 台 | E25: 1 | F25: 配电箱 | G25: 0 | I25: 配电箱 | J25: 套 | L25: / | M25: 0 | P25: 0.00 | Q25: 配电箱甲供
A26: 20 | B26: 配电箱 | C26: 1.名称：电信机房配电箱4-1ATrd 2.规格：50KW,5回路，ATS-160/4 CB级，详见图纸 3.安装方式：落地靠墙 | D26: 台 | E26: 1 | F26: 配电箱 | G26: 0 | I26: 配电箱 | J26: 套 | L26: / | M26: 0 | P26: 0.00 | Q26: 配电箱甲供
A27: 21 | B27: 配电箱 | C27: 1.名称：应急照明总配电箱4-1ALeZ、4-1ALeZE 2.规格：10KW,5回路，详见图纸 3.安装方式：挂墙明装 | D27: 台 | E27: 2 | F27: 配电箱 | G27: 0 | I27: 配电箱 | J27: 套 | L27: / | M27: 0 | P27: 0.00 | Q27: 配电箱甲供
A28: 22 | B28: 配电箱 | C28: 1.名称：应急照明双电源配电箱4-1ALe1 2.规格：2KW,3回路，ATS-32/4 PC级，详见图纸 3.安装方式：挂墙明装 | D28: 台 | E28: 1 | F28: 配电箱 | G28: 0 | I28: 配电箱 | J28: 套 | L28: / | M28: 0 | P28: 0.00 | Q28: 配电箱甲供
A29: 23 | B29: 配电箱 | C29: 1.名称：应急照明双电源配电箱4-1ALe2 2.规格：2KW,3回路，ATS-32/4 PC级，详见图纸 3.安装方式：挂墙明装 | D29: 台 | E29: 1 | F29: 配电箱 | G29: 0 | I29: 配电箱 | J29: 套 | L29: / | M29: 0 | P29: 0.00 | Q29: 配电箱甲供
A30: 24 | B30: 配电箱 | C30: 1.名称：应急照明双电源配电箱4-1ALe3 2.规格：2KW,5回路，ATS-32/4 PC级，详见图纸 3.安装方式：挂墙明装 | D30: 台 | E30: 1 | F30: 配电箱 | G30: 0 | I30: 配电箱 | J30: 套 | L30: / | M30: 0 | P30: 0.00 | Q30: 配电箱甲供
A31: 25 | B31: 配电箱 | C31: 1.名称：应急照明双电源配电箱4-1ALe4 2.规格：2KW,3回路，ATS-32/4 PC级，详见图纸。 3.安装方式：挂墙明装 | D31: 台 | E31: 1 | F31: 配电箱 | G31: 0 | I31: 配电箱 | J31: 套 | L31: / | M31: 0 | P31: 0.00 | Q31: 配电箱甲供
A32: 26 | B32: 配电箱 | C32: 1.名称：安防大厅配电箱4-1ATaf 2.规格：50KW,5回路，ATS-160/4P PC级，详见图纸 3.安装方式：落地靠墙 | D32: 台 | E32: 1 | F32: 配电箱 | G32: 0 | I32: 配电箱 | J32: 套 | L32: / | M32: 0 | P32: 0.00 | Q32: 配电箱甲供
A33: 27 | B33: 配电箱 | C33: 1.名称：大厅照明配电箱4-1ALz1 2.规格：50KW,35回路，ATS-160/4P CB级，详见图纸 3.安装方式：落地靠墙 | D33: 台 | E33: 1 | F33: 配电箱 | G33: 0 | I33: 配电箱 | J33: 套 | L33: / | M33: 0 | P33: 0.00 | Q33: 配电箱甲供
A34: 28 | B34: 配电箱 | C34: 1.名称：服务台配电箱4-1ALfw1 2.规格：6KW,6回路，详见图纸 3.安装方式：挂墙明装 | D34: 台 | E34: 1 | F34: 配电箱 | G34: 0 | I34: 配电箱 | J34: 套 | L34: / | M34: 0 | P34: 0.00 | Q34: 配电箱甲供
A35: 29 | B35: 配电箱 | C35: 1.名称：ATM机配电箱4-1ALatm 2.规格：6KW,6回路，详见图纸 3.安装方式：挂墙明装 | D35: 台 | E35: 1 | F35: 配电箱 | G35: 0 | I35: 配电箱 | J35: 套 | L35: / | M35: 0 | P35: 0.00 | Q35: 配电箱甲供
A36: 30 | B36: 凿（压)槽 | C36: 1.名称:砖墙开槽 2.填充(恢复)方式:水泥砂浆恢复 | D36: m | E36: 372.4 | F36: / | G36: 0 | I36: / | J36: / | M36: =L36*K36 -> 0 | P36: 0.00
A37: 31 | B37: 配管 | C37: 1.名称:硬塑料管（PVC） 2.规格:PC20 3.配置形式:砖、混凝土结构暗配 | D37: m | E37: 450 | F37: PVC电线管 | G37: 0 | I37: PVC电线管20 | J37: m | M37: =L37*K37 -> 0 | P37: 0.00
A38: 32 | B38: 配管 | C38: 1.名称:硬塑料管（PVC） 2.规格:PC20 3.配置形式:砖、混凝土结构明配 | D38: m | E38: 2250 | F38: PVC电线管 | G38: 0 | I38: PVC电线管20 | J38: m | M38: 0 | P38: 0.00
A39: 33 | B39: 配管 | C39: 1.名称:硬塑料管（PVC） 2.规格:PC25 3.配置形式:砖、混凝土结构暗配 | D39: m | E39: 150 | F39: PVC电线管 | G39: 0 | I39: PVC电线管25 | J39: m | M39: 0 | P39: 0.00
A40: 34 | B40: 配管 | C40: 1.名称:硬塑料管（PVC） 2.规格:PC25 3.配置形式:砖、混凝土结构明配 | D40: m | E40: 1350 | F40: PVC电线管 | G40: 0 | I40: PVC电线管25 | J40: m | M40: 0 | P40: 0.00
A41: 35 | B41: 配管 | C41: 1.名称:硬塑料管（PVC） 2.规格:PC32 3.配置形式:砖、混凝土结构暗配 | D41: m | E41: 110 | F41: PVC电线管 | G41: 0 | I41: PVC电线管32 | J41: m | M41: 0 | P41: =G41*E41 -> 0.00
A42: 36 | B42: 配管 | C42: 1.名称:硬塑料管（PVC） 2.规格:PC32 3.配置形式:砖、混凝土结构明配 | D42: m | E42: 450 | F42: PVC电线管 | G42: 0 | I42: PVC电线管32 | J42: m | M42: 0 | P42: 0.00
A43: 37 | B43: 配管 | C43: 1.名称:紧定式镀锌钢导管 2.规格:JDG20 3.配置形式:砖、混凝土结构暗配 | D43: m | E43: 15 | F43: 紧定式镀锌钢导管 | G43: 0 | I43: 紧定式镀锌钢导管20 | J43: m | M43: 0 | P43: 0.00
A44: 38 | B44: 配管 | C44: 1.名称:紧定式镀锌钢导管 2.规格:JDG20 3.配置形式:砖、混凝土结构明配 | D44: m | E44: 25 | F44: 紧定式镀锌钢导管 | G44: 0 | I44: 紧定式镀锌钢导管20 | J44: m | M44: 0 | P44: 0.00
A45: 39 | B45: 配管 | C45: 1.名称:紧定式镀锌钢导管 2.规格:JDG40 3.配置形式:砖、混凝土结构暗配 | D45: m | E45: 35 | F45: 紧定式镀锌钢导管 | G45: 0 | I45: 紧定式镀锌钢导管40 | J45: m | M45: 0 | P45: 0.00
A46: 40 | B46: 配管 | C46: 1.名称:紧定式镀锌钢导管 2.规格:JDG40 3.配置形式:砖、混凝土结构明配 | D46: m | E46: 72 | F46: 紧定式镀锌钢导管 | G46: 0 | I46: 紧定式镀锌钢导管40 | J46: m | M46: 0 | P46: 0.00
A47: 41 | B47: 配管 | C47: 1.名称:紧定式镀锌钢导管 2.规格:JDG50 3.配置形式:砖、混凝土结构暗配 | D47: m | E47: 22 | F47: 紧定式镀锌钢导管 | G47: 0 | I47: 紧定式镀锌钢导管50 | J47: m | M47: 0 | P47: 0.00
A48: 42 | B48: 配管 | C48: 1.名称:紧定式镀锌钢导管 2.规格:JDG50 3.配置形式:砖、混凝土结构明配 | D48: m | E48: 32 | F48: 紧定式镀锌钢导管 | G48: 0 | I48: 紧定式镀锌钢导管50 | J48: m | M48: 0 | P48: 0.00
A49: 43 | B49: 桥架 | C49: 1.名称:钢制桥架 2.规格:300*150 | D49: m | E49: 113.73 | F49: 桥架 | G49: =H49+M49+N49+O49 -> 0 | I49: 成品镀锌钢桥架300*150 | J49: m | M49: 0 | P49: 0.00
A50: 44 | B50: 桥架 | C50: 1.名称:钢制桥架 2.规格:200*100 | D50: m | E50: 27.48 | F50: 桥架 | G50: 0 | I50: 成品镀锌钢桥架200*100 | J50: m | M50: 0 | P50: 0.00
A51: 45 | B51: 电力电缆 | C51: 1.名称:铜芯电缆 2.型号:WDZ-YJV-4*35+1*16 3.敷设方式、部位:穿管 | D51: m | E51: 45 | F51: 铜芯电缆 | G51: 0 | I51: DZ-YJV-4*35+1*16 3.敷设方式、 | J51: m | M51: 0 | P51: 0.00
A52: 46 | B52: 电力电缆 | C52: 1.名称:铜芯电缆 2.型号:WDZ-BYJ-4*25+1*16 3.敷设方式、部位:穿管 | D52: m | E52: 65 | F52: 铜芯电缆 | G52: 0 | I52: WDZ-BYJ-4*25+1*16 | J52: m | M52: 0 | P52: 0.00
A53: 47 | B53: 电力电缆 | C53: 1.名称:铜芯电缆 2.型号:WDZN-YJV-4*25 3.敷设方式、部位:穿管 | D53: m | E53: 45 | F53: 铜芯电缆 | G53: 0 | I53: WDZN-YJV-4*25 | J53: m | M53: 0 | P53: 0.00
A54: 48 | B54: 电力电缆 | C54: 1.名称:铜芯电缆 2.型号:WDZ-YJV-5*16 3.敷设方式、部位:穿管 | D54: m | E54: 60 | F54: 铜芯电缆 | G54: 0 | I54: WDZ-YJV-5*16 | J54: m | M54: 0 | P54: 0.00
A55: 49 | B55: 电力电缆 | C55: 1.名称:铜芯电缆 2.型号:WDZ-YJV-5*10 3.敷设方式、部位:穿管 | D55: m | E55: 48 | F55: 铜芯电缆 | G55: 0 | I55: WDZ-YJV-5*10 | J55: m | M55: 0 | P55: 0.00
A56: 50 | B56: 电力电缆 | C56: 1.名称:铜芯电缆 2.型号:NG-A-5*6 3.敷设方式、部位:穿管 | D56: m | E56: 120 | F56: 铜芯电缆 | G56: 0 | I56: NG-A-5*6 | J56: m | M56: 0 | P56: 0.00
A57: 51 | B57: 配线 | C57: 1.名称:铜芯电线 2.型号:WDZ-BYJ-10 | D57: m | E57: 320 | F57: 铜芯电线 | G57: 0 | I57: WDZ-BYJ-10 | J57: m | M57: 0 | P57: 0.00
A58: 52 | B58: 配线 | C58: 1.名称:铜芯电线 2.型号:WDZ-BYJ-10 | D58: m | E58: 930 | F58: 铜芯电线 | G58: 0 | I58: WDZ-BYJ-10 | J58: m | M58: 0 | P58: 0.00
A59: 53 | B59: 配线 | C59: 1.名称:铜芯电线 2.型号:WDZN-BYJ-6 | D59: m | E59: 1056 | F59: 铜芯电线 | G59: 0 | I59: WDZN-BYJ-6 | J59: m | M59: 0 | P59: 0.00
A60: 54 | B60: 配线 | C60: 1.名称:铜芯电线 2.型号:WDZN-BYJ-6 | D60: m | E60: 495 | F60: 铜芯电线 | G60: 0 | I60: WDZN-BYJ-6 | J60: m | M60: 0 | P60: 0.00
A61: 55 | B61: 配线 | C61: 1.名称:铜芯电线 2.型号:WDZ-BYJ-4 | D61: m | E61: 3630 | F61: 铜芯电线 | G61: 0 | I61: WDZ-BYJ-4 | J61: m | M61: 0 | P61: 0.00
A62: 56 | B62: 配线 | C62: 1.名称:铜芯电线 2.型号:WDZN-BYJ-4 | D62: m | E62: 405 | F62: 铜芯电线 | G62: 0 | I62: DZN-BYJ-4 | J62: m | M62: 0 | P62: 0.00
A63: 57 | B63: 配线 | C63: 1.名称:铜芯电线 2.型号:WDZ-BYJ-2.5 | D63: m | E63: 10575 | F63: 铜芯电线 | G63: 0 | I63: WDZ-BYJ-2.5 | J63: m | M63: 0 | P63: 0.00
A64: 58 | B64: 配线 | C64: 1.名称:铜芯电线 2.型号:WDZN-BYJ-2.5 | D64: m | E64: 1356 | F64: 铜芯电线 | G64: 0 | I64: WDZN-BYJ-2.5 | J64: m | M64: 0 | P64: 0.00
A65: 59 | B65: 电力电缆头 | C65: 1.名称:成套型电缆头 2.规格:电缆截面35mm2以下 | D65: 个 | E65: 65 | F65: 电缆头 | G65: 0 | I65: 电缆头截面35mm2以下 | J65: 个 | M65: 0 | P65: 0.00
A66: 60 | B66: 接线盒 | C66: 1.名称:接线盒 2.材质:镀锌 | D66: 个 | E66: 450 | F66: 镀锌接线盒 | G66: 0 | I66: 镀锌接线盒 | J66: 个 | M66: 0 | P66: 0.00
A67: 61 | B67: 普通灯具 | C67: 1.名称:嵌入式筒灯 2.类型:LED | D67: 套 | E67: 101 | F67: 灯具 | G67: 0 | I67: 嵌入式筒灯 | J67: 套 | M67: 0 | P67: 0.00
A68: 62 | B68: 普通灯具 | C68: 1.名称:嵌入式防潮筒灯 2.类型:LED | D68: 套 | E68: 56 | F68: 灯具 | G68: 0 | I68: 嵌入式防潮筒灯 | J68: 套 | M68: 0 | P68: 0.00
A69: 63 | B69: 普通灯具 | C69: 1.名称:日光灯 2.类型:LED | D69: 套 | E69: 28 | F69: 灯具 | G69: 0 | I69: 日光灯 | J69: 套 | M69: 0 | P69: 0.00
A70: 64 | B70: 普通灯具 | C70: 1.名称:格栅灯 2.类型:LED | D70: 套 | E70: 19 | F70: 灯具 | G70: 0 | I70: 格栅灯 | J70: 套 | M70: =L70*K70 -> 0 | P70: 0.00
A71: 65 | B71: 普通灯具 | C71: 1.名称:灯带 2.类型:LED | D71: m | E71: 125 | F71: 灯具 | G71: =H71+M71+N71+O71 -> 0 | I71: LED灯带 | J71: m | M71: 0 | P71: 0.00
A72: 66 | B72: 普通灯具 | C72: 1.名称:应急照明筒灯 2.类型:LED | D72: 套 | E72: 35 | F72: 灯具 | G72: 0 | I72: 应急照明筒灯 | J72: 套 | M72: 0 | P72: 0.00
A73: 67 | B73: 普通灯具 | C73: 1.名称:应急照明格栅灯 2.类型:LED | D73: 套 | E73: 5 | F73: 灯具 | G73: 0 | I73: 应急照明格栅灯 | J73: 套 | M73: 0 | P73: =G73*E73 -> 0.00
A74: 68 | B74: 普通灯具 | C74: 1.名称:应急照明挂壁式 2.类型:LED | D74: 套 | E74: 25 | F74: 灯具 | G74: 0 | I74: 应急照明挂壁式 | J74: 套 | M74: 0 | P74: 0.00
A75: 69 | B75: 普通灯具 | C75: 1.名称:应急出口指示灯 2.类型:LED | D75: 套 | E75: 125 | F75: 灯具 | G75: 0 | I75: 应急出口指示灯 | J75: 套 | M75: 0 | P75: 0.00
A76: 70 | B76: 小电器 | C76: 1.名称:单联单控开关 | D76: 个 | E76: 35 | F76: 开关 | G76: 0 | I76: 单联单控开关 | J76: 个 | M76: =H76*K76 -> 0 | P76: 0.00
A77: 71 | B77: 小电器 | C77: 1.名称:双联单控开关 | D77: 个 | E77: 18 | F77: 开关 | G77: 0 | I77: 双联单控开关 | J77: 个 | M77: 0 | P77: 0.00
A78: 72 | B78: 小电器 | C78: 1.名称:三联单控开关 | D78: 个 | E78: 15 | F78: 开关 | G78: 0 | I78: 三联单控开关 | J78: 个 | M78: 0 | P78: 0.00
A79: 73 | B79: 小电器 | C79: 1.名称:单联双控开关 | D79: 个 | E79: 35 | F79: 开关 | G79: 0 | I79: 单联双控开关 | J79: 个 | M79: 0 | P79: 0.00
A80: 74 | B80: 小电器 | C80: 1.名称:地面铜插座 2.型号:15A | D80: 个 | E80: 33 | F80: 插座 | G80: 0 | I80: 地面铜插座 | J80: 个 | M80: 0 | P80: 0.00
A81: 75 | B81: 小电器 | C81: 1.名称:五孔普通插座 2.型号:15A | D81: 个 | E81: 58 | F81: 插座 | G81: 0 | I81: 五孔普通插座 | J81: 个 | M81: 0 | P81: 0.00
A82: 76 | B82: 小电器 | C82: 1.名称:轴流排风扇 | D82: 个 | E82: 12 | F82: 轴流排风扇 | G82: 0 | I82: 轴流排风扇 | J82: 个 | M82: 0 | P82: 0.00
A83: 77 | B83: 网络、电视、电话 | G83: 0 | M83: =L83*K83 -> 0 | P83: 0.00
A84: 78 | B84: 光缆终端盒 | C84: 1.弱电箱 | D84: 个 | E84: 3 | F84: 弱电箱 | G84: 0 | I84: 弱电箱 | J84: 个 | M84: 0 | P84: 0.00
A85: 79 | B85: 配线 | C85: 1.名称:视频同轴电缆 2.配线形式:穿管 | D85: m | E85: 325 | F85: 同轴电缆 | G85: 0 | I85: 视频同轴电缆 | J85: m | M85: 0 | P85: 0.00
A86: 80 | B86: 配线 | C86: 1.名称:双绞线（6芯） 2.配线形式:穿管 | D86: m | E86: 898 | F86: 双绞线 | G86: 0 | I86: 双绞线（6芯） | J86: m | M86: 0 | P86: 0.00
A87: 81 | B87: 小电器 | C87: 1.名称:有线电视插座 2.安装方式:墙面安装 | D87: 个 | E87: 35 | F87: 插座 | G87: 0 | I87: 有线电视插座 | J87: 个 | M87: 0 | P87: 0.00
A88: 82 | B88: 小电器 | C88: 1.名称:网络插座单口 2.安装方式:墙面安装 | D88: 个 | E88: 5 | F88: 插座 | G88: 0 | I88: 网络插座单口 | J88: 个 | M88: 0 | P88: 0.00
A89: 83 | B89: 小电器 | C89: 1.名称:网络插座单口 2.安装方式:地面安装 | D89: 个 | E89: 5 | F89: 插座 | G89: 0 | I89: 网络插座单口 | J89: 个 | M89: 0 | P89: 0.00
A90: 84 | B90: 给排水、洁具安装工程 | M90: 0 | P90: 0.00
A91: 85 | B91: 塑料管 | C91: 1.材质、规格:PPR管DN20 2.连接形式:热熔 3.压力试验及吹、洗设计要求:符合规范及设计要求 | D91: m | E91: 320 | F91: PPR管 | G91: 0 | I91: PPR管DN20 | J91: m | M91: 0 | P91: 0.00
A92: 86 | B92: 塑料管 | C92: 1.材质、规格:PPR管DN25 2.连接形式:热熔 3.压力试验及吹、洗设计要求:符合规范及设计要求 | D92: m | E92: 160 | F92: PPR管 | G92: 0 | I92: PPR管DN25 | J92: m | M92: 0 | P92: 0.00
A93: 87 | B93: 塑料管 | C93: 1.材质、规格:PPR管DN32 2.连接形式:热熔 3.压力试验及吹、洗设计要求:符合规范及设计要求 | D93: m | E93: 120 | F93: PPR管 | G93: 0 | I93: PPR管DN32 | J93: m | M93: 0 | P93: 0.00
A94: 88 | B94: 塑料管 | C94: 1.材质、规格:U-PVCP排水管Φ50 2.连接形式:胶粘 3.压力试验及吹、洗设计要求:符合规范及设计要求 | D94: m | E94: 120 | F94: 排水管 | G94: 0 | I94: U-PVCP排水管Φ50 | J94: m | M94: 0 | P94: 0.00
A95: 89 | B95: 塑料管 | C95: 1.材质、规格:U-PVCP排水管Φ75 2.连接形式:胶粘 3.压力试验及吹、洗设计要求:符合规范及设计要求 | D95: m | E95: 250 | F95: 排水管 | G95: 0 | I95: U-PVCP排水管Φ75 | J95: m | M95: 0 | P95: 0.00
A96: 90 | B96: 塑料管 | C96: 1.材质、规格:U-PVCP排水管Φ110 2.连接形式:胶粘 3.压力试验及吹、洗设计要求:符合规范及设计要求 | D96: m | E96: 420 | F96: 排水管 | G96: 0 | I96: U-PVCP排水管Φ110 | J96: m | M96: 0 | P96: 0.00
A97: 91 | B97: 洗脸盆 | C97: 1.材质:陶瓷 2.规格、类型:成套立式洗手盆 3.附件名称、数量:含下水 | D97: 组 | E97: 4 | F97: 立式洗手盆 | G97: 0 | I97: 成套立式洗手盆 | J97: 组 | L97: 500 | M97: =L97*K97 -> 0 | P97: 0.00 | Q97: 成套立式洗手盆甲控乙供，主材价暂定，按质定价
A98: 92 | B98: 洗脸盆龙头 | C98: 1.立式洗脸盆冷热水龙头 | D98: 套 | E98: 4 | F98: 冷热水龙头 | G98: 0 | I98: 立式洗脸盆冷热水龙头 | J98: 套 | L98: 200 | M98: 0 | P98: 0.00 | Q98: 立式洗脸盆冷热水龙头甲控乙供，主材价暂定，按质定价
A99: 93 | B99: 洗脸盆 | C99: 1.材质:陶瓷 2.规格、类型:嵌入式台上式洗脸盆 3.附件名称、数量:含下水 | D99: 组 | E99: 12 | F99: 洗脸盆 | G99: 0 | I99: 嵌入式台上式洗脸盆 | J99: 组 | L99: 550 | M99: 0 | P99: 0.00 | Q99: 嵌入式台上式洗脸盆甲控乙供，主材价暂定，按质定价
A100: 94 | B100: 洗脸盆龙头 | C100: 1.台上盆冷热水龙头 | D100: 套 | E100: 12 | F100: 台上盆冷热水龙头 | G100: 0 | I100: 台上盆冷热水龙头 | J100: 套 | L100: 350 | M100: 0 | P100: 0.00 | Q100: 台上盆冷热水龙头甲控乙供，主材价暂定，按质定价
A101: 95 | B101: 大便器 | C101: 1.材质:陶瓷 2.规格、类型:蹲便器 | D101: 组 | E101: 43 | F101: 蹲便器 | G101: 0 | I101: 蹲便器 | J101: 组 | L101: 350 | M101: 0 | P101: 0.00 | Q101: 蹲便器甲控乙供，主材价暂定，按质定价
A102: 96 | B102: 大便器脚踏阀 | C102: 1.大便器脚踏阀 | D102: 套 | E102: 43 | F102: 大便器脚踏阀 | G102: 0 | I102: 大便器脚踏阀 | J102: 套 | L102: 90 | M102: 0 | P102: 0.00 | Q102: 大便器脚踏阀甲控乙供，主材价暂定，按质定价
A103: 97 | B103: 大便器 | C103: 1.材质:陶瓷 2.规格、类型:坐便器 | D103: 组 | E103: 2 | F103: 坐便器 | G103: 0 | I103: 坐便器 | J103: 组 | L103: 2800 | M103: 0 | P103: 0.00 | Q103: 坐便器甲控乙供，主材价暂定，按质定价
A104: 98 | B104: 大便器 | C104: 1.材质:陶瓷 2.规格、类型:坐便器（儿童） | D104: 组 | E104: 1 | F104: 坐便器（儿童） | G104: 0 | I104: 坐便器（儿童） | J104: 组 | L104: 1000 | M104: 0 | P104: 0.00 | Q104: 坐便器（儿童）甲控乙供，主材价暂定，按质定价
A105: 99 | B105: 小便器 | C105: 1.材质:陶瓷 2.规格、类型:成品小便斗 | D105: 组 | E105: 13 | F105: 成品小便斗 | G105: 0 | I105: 感应阀 | J105: 组 | L105: 680 | M105: 0 | P105: 0.00 | Q105: 感应阀甲控乙供，主材价暂定，按质定价
A106: 100 | B106: 小便器感应阀 | C106: 1.小便器感应阀 | D106: 组 | E106: 13 | F106: 小便器感应阀 | G106: 0 | I106: 小便器感应阀 | J106: 组 | L106: 320 | M106: 0 | P106: 0.00 | Q106: 小便器感应阀甲控乙供，主材价暂定，按质定价
A107: 101 | B107: 烘手器 | C107: 1.型号、规格:成品烘手器 | D107: 个 | E107: 4 | F107: 成品烘手器 | G107: 0 | I107: 成品烘手器 | J107: 个 | L107: 220 | M107: 0 | P107: 0.00 | Q107: 成品烘手器甲控乙供，主材价暂定，按质定价
A108: 102 | B108: 洗涤盆 | C108: 1.材质:陶瓷 2.规格、类型:拖把池 | D108: 组 | E108: 4 | F108: 拖把池 | G108: 0 | I108: 拖把池 | J108: 组 | L108: 450 | M108: 0 | P108: 0.00 | Q108: 拖把池甲控乙供，主材价暂定，按质定价
A109: 103 | B109: 小计 | P109: =SUM(P3:P108) -> 0.00
A110: 104 | B110: 计费明细 | C110: 管理费 | D110: 项 | E110: 4% | P110: =P109*E110 -> 0.00
A111: 105 | C111: 利润 | D111: 项 | E111: 10% | P111: =P109*E111 -> 0.00
A112: 106 | C112: 税金 | D112: 项 | E112: 9% | P112: =(P111+P110+P109)*E112 -> 0.00
A113: 107 | B113: 工程总造价 | P113: =P112+P111+P110+P109 -> 0.00
A114: 1、综合单价为包含人工费（包括人员加班工资、差旅及窝工费）、材料费、机械费、风险的包工包料价格，包含深化设计、监理资料及竣工图绘制费用，包括水电、卸货、材料保管、二次搬运、上楼、各种保险、加班、临时设施、赶工措施、已完工项目成品保护措施、夜间照明、安全文明施工等费用，施工人员的食宿费、劳保费用、办公费、生活生产水电费、保险费也包含在报价里。其中：主材费单价包含主要材料费、运输费、运输损耗费、施工损耗费。施工单价包含人工费、机械费及除主要材料费以外辅材及其他所有费用。
A115: 2、报价税率按9%考虑，提供9%税率的增值税专用发票。
A116: 3、甲控乙供材料按提供的单价暂定，投标时价格不可调整，施工过程中投标人送样，招标人按质定价。
B117: 投标单位（公章）：
B118: 授权委托人：
B119: 日 期： 2020 年 月 日

Sheet 游客中心措施费
A1: 措施费项目计价表
A2: 工程名称：第四届中国绿博会游客服务中心装饰装修专业分包工程
A3: 序号 | B3: 项目名称 | C3: 单位 | D3: 数量 | E3: 金额（元） | F3: 备注
A4: 1 | B4: 安全文明施工费 | C4: 项 | D4: 1 | F4: 专项包干费
A5: 2 | B5: 成品保护费 | C5: 项 | D5: 1 | F5: 专项包干费
A6: 3 | B6: 开荒清洁、垃圾清运费 | C6: 项 | D6: 1 | F6: 专项包干费
A7: 4 | B7: 临时设施费 | C7: 项 | D7: 1 | F7: 专项包干费
A8: 5 | B8: 专业交叉施工增加费 | C8: 项 | D8: 1 | F8: 专项包干费
A9: 6 | B9: 脚手架 | C9: 项 | D9: 1 | F9: 专项包干费
A10: 7 | B10: 运杂费（二次搬运费等） | C10: 项 | D10: 1 | F10: 专项包干费
A11: 8 | B11: 其它配合费 | C11: 项 | D11: 1 | F11: 专项包干费
A12: 10 | B12: 工地开放日保洁 | C12: 项 | D12: 1 | F12: 专项包干费
B13: 合价 | E13: =(SUM(E4:E12))*0.7 -> 0.00
A15: 说明： | B15: 措施费用各项应为含税包干报价，不因任何情况调整，措施费按实际发生计取，不发生不计取。。
B18: 投标单位（公章）：
B19: 授权委托人：
B20: 日 期： 2020 年 月 日

Sheet 花园餐厅装饰
A1: 装饰工程量报价清单
A2: 工程名称：第四届中国绿博会花园餐厅装饰装修专业分包工程
A3: 序号 | B3: 分项工程名称 | C3: 项目特征 | D3: 单位 | E3: 数量 | F3: 主材名称 | G3: 综合单价 | H3: 其 中： | P3: 合价 | Q3: 备注
H4: 人工费 | I4: 材 料 费
I5: 主材费 | O5: 机械费
I6: 名称及规格 | J6: 单位 | K6: 单位耗量 | L6: 单价 | M6: 单位主材费合价 | N6: 辅材
A7: 1 | B7: 1#、2#、3#入口
A8: 2 | B8: 石材零星项目 | C8: 1.地台深色石材水泥砂浆粘贴 | D8: m2 | E8: 19.7 | F8: 石材 | G8: =H8+N8+O8 -> 0.00 | I8: 深色石材 | J8: m2 | L8: / | M8: / | P8: =G8*E8 -> 0.00 | Q8: 石材甲供
A9: 3 | B9: 石材楼地面 | C9: 1.灰色石材（火烧面）水泥砂浆铺贴。 | D9: m2 | E9: 321.11 | F9: 石材 | G9: =H9+N9+O9 -> 0.00 | I9: 灰色石材（火烧面） | J9: m2 | L9: / | M9: / | P9: 0.00 | Q9: 石材甲供
A10: 4 | B10: 石材楼地面 | C10: 1.灰色石材（光面）水泥砂浆铺贴。 | D10: m2 | E10: 32.54 | F10: 石材 | G10: =H10+N10+O10 -> 0.00 | I10: 灰色石材（火烧面） | J10: m2 | L10: / | M10: / | P10: 0.00 | Q10: 石材甲供
A11: 5 | B11: 天棚喷刷涂料 | C11: 1.原楼板、梁喷灰色涂料。 | D11: m2 | E11: 308.36 | F11: 乳胶漆 | G11: =H11+M11+N11+O11 -> 0.00 | I11: 黑色乳胶漆 | J11: m2 | M11: =L11*K11 -> 0.00 | P11: 0.00
A12: 6 | B12: 格栅吊顶 | C12: 1.Φ8吊筋，M8膨胀螺栓固定。 2.轻钢主龙骨、副龙、连接件。 3.铝方通(表面木纹转印处理)@300mm，规格40*150。 | D12: m2 | E12: 308.36 | F12: 铝方通 | G12: =H12+M12+N12+O12 -> 0.00 | I12: 铝方通(表面木纹转印处理) 规格40*150。 | J12: m | L12: 15 | M12: =L12*K12 -> 0.00 | P12: 0.00 | Q12: 铝方通(表面木纹转印处理)甲控乙供，主材价暂定，按质定价
A13: 7 | B13: 墙面装饰板 | C13: 1.白色铝单板3mm厚，拼接自然缝，内塞密封胶条 2.铝单板专用挂件 4.基层另计 | D13: m2 | E13: 439.84 | F13: 铝板 | G13: =H13+M13+N13+O13 -> 0.00 | I13: 白色铝单板3mm厚 | J13: m2 | L13: 240 | M13: =L13*K13 -> 0.00 | P13: 0.00 | Q13: 铝板甲控乙供，主材价暂定，按质定价
A14: 8 | B14: 弧形铝板包圆柱 | C14: 1.白色弧形铝单板3mm厚，拼接自然缝，内塞密封胶条 2.铝单板专用挂件 4.基层另计 | D14: m2 | E14: 59.99 | F14: 铝板 | G14: =H14+M14+N14+O14 -> 0.00 | I14: 弧形白色铝单板3mm厚 | J14: m2 | L14: 300 | M14: =L14*K14 -> 0.00 | P14: 0.00 | Q14: 铝板甲控乙供，主材价暂定，按质定价
A15: 9 | B15: 餐厅01、02
A16: 10 | B16: 石材门槛石 | C16: 1.灰色石材门槛石水泥砂浆粘贴。 | D16: m2 | E16: 4.8 | F16: 石材门槛石 | G16: =H16+N16+O16 -> 0.00 | I16: 灰色石材门槛石 | J16: m2 | L16: / | M16: / | P16: =G16*E16 -> 0.00 | Q16: 石材甲供
A17: 11 | B17: 现浇水磨石楼地面 | C17: 1.水磨石地面800*800mm | D17: m2 | E17: 1784.88 | G17: =H17+M17+N17+O17 -> 0.00 | I17: / | L17: / | M17: 0.00 | P17: 0.00
A18: 12 | B18: 竹、木（复合）地板 | C18: 1.木地板。 2.防潮垫。 | D18: m2 | E18: 37.15 | F18: 木地板 | G18: 0.00 | I18: 木地板 | J18: m2 | L18: 100 | M18: =L18*K18 -> 0.00 | P18: 0.00 | Q18: 木地板甲控乙供，主材价暂定，按质定价
A19: 13 | B19: 天棚喷刷涂料 | C19: 1.原楼板、梁喷灰色涂料。 | D19: m2 | E19: 1500 | F19: 乳胶漆 | G19: 0.00 | I19: 黑色乳胶漆 | J19: m2 | M19: 0.00 | P19: 0.00
A20: 14 | B20: 格栅吊顶 | C20: 1.Φ8吊筋，M8膨胀螺栓固定 2.轻钢龙骨 3.铝方通(表面木纹转印处理)@300mm，规格40*150 4.详见图纸1F-P02、1#CT-PM-02/3、4 | D20: m2 | E20: 1091.42 | F20: 铝方通 | G20: 0.00 | I20: 铝方通(表面木纹转印处理) 规格40*150。 | J20: m | L20: 15 | M20: 0.00 | P20: 0.00 | Q20: 铝方通(表面木纹转印处理)甲控乙供，主材价暂定，按质定价
A21: 15 | B21: 格栅吊顶 | C21: 1.Φ8吊筋，M8膨胀螺栓固定。 2.轻钢主龙骨。 3.铝方通(表面木纹转印处理)详见图纸，规格40*150。 4.详见图纸1F-P01、1#CT-PM-01/2 | D21: m2 | E21: 165.8 | F21: 铝方通 | G21: 0.00 | I21: 铝方通(表面木纹转印处理) 规格40*150。 | J21: m | L21: 15 | M21: 0.00 | P21: 0.00 | Q21: 铝方通(表面木纹转印处理)甲控乙供，主材价暂定，按质定价
A22: 16 | B22: 格栅吊顶 | C22: 1.Φ8吊筋，M8膨胀螺栓固定。 2.轻钢主龙骨。 3.铝方通(表面木纹转印处理)间距详见图纸，规格40*250。 4.详见图纸1F-P01、1#CT-PM-01/1 | D22: m2 | E22: 430 | F22: 铝方通 | G22: 0.00 | I22: 铝方通(表面木纹转印处理) 规格40*150。 | J22: m | L22: 18 | M22: 0.00 | P22: 0.00 | Q22: 铝方通(表面木纹转印处理)甲控乙供，主材价暂定，按质定价
A23: 17 | B23: 吊顶天棚 | C23: 1.镀锌钢龙骨另计 2.18厚防火板基层板、侧板 3.纸面石膏板,自粘胶带密封，自攻钉防锈处理 4.自粘胶带、腻子、乳胶漆另计。 5.成品嵌入式条形灯具另计。 6.详见图纸1#CT-PM-03/6 | D23: m2 | E23: 30.58 | G23: 0.00 | I23: 防火板 18mm厚 | J23: m2 | M23: 0.00 | P23: 0.00
A24: 18 | B24: 铝板饰面装饰壁柜-柜体 | C24: 1.尺寸：680*3650 2.预埋铁件、镀锌方管另计 3.18厚防火板柜体基层板 4.铝板饰面柜体板,玫瑰金色喷涂另计 5.内壁纸面石膏板、膏板外贴壁纸另计 5.铝板饰面柜体隔板,玫瑰金色喷涂另计 6.暗藏LED灯带，灯带另计 7.详见图纸1#CT-PM-05 8.投影面计算 | D24: m2 | E24: 124.1 | F24: 防火板 | G24: 0.00 | I24: 防火板 18mm厚 | J24: m2 | M24: 0.00 | P24: 0.00
A25: 19 | B25: 铝板饰面装饰壁柜-铝板饰面柜体板 | C25: 1.铝板饰面柜体板,玫瑰金色喷涂 2.展开面积计算 | D25: m2 | E25: 242 | F25: 铝板 | G25: 0.00 | I25: 铝板玫瑰金色喷涂 | J25: m2 | L25: 240 | M25: 0.00 | P25: 0.00 | Q25: 铝板甲控乙供，主材价暂定，按质定价
A26: 20 | B26: 铝板饰面装饰壁柜-内壁纸面石膏板封板 | C26: 1.纸面石膏板封板 2.展开面积计算 | D26: m2 | E26: 120 | F26: 纸面石膏板 | G26: 0.00 | I26: 纸面石膏板9.5mm | J26: m2 | M26: 0.00 | P26: 0.00
A27: 21 | B27: 铝板饰面装饰壁柜-内壁墙纸 | C27: 1.墙纸专用墙纸胶粘贴 2.展开面积计算 | D27: m2 | E27: 120 | F27: 墙纸 | G27: 0.00 | I27: 墙纸 | J27: m2 | L27: 30 | M27: 0.00 | P27: 0.00 | Q27: 墙纸甲控乙供，主材价暂定，按质定价
A28: 22 | B28: 铝板饰面装饰壁柜-铝板饰面柜体隔板 | C28: 1.镀锌方管龙骨。 2.18厚防火板基层板 4.铝板饰面柜体板,玫瑰金色喷涂 5、暗藏灯带 6.延长米计算 | D28: m | E28: 35 | F28: 铝板 | G28: 0.00 | I28: 铝板玫瑰金色喷涂 | J28: m2 | L28: 240 | M28: 0.00 | P28: 0.00 | Q28: 铝板甲控乙供，主材价暂定，按质定价
A29: 23 | B29: 墙面装饰板 | C29: 1.铝单板面层面层木纹色转印3mm厚 2.铝单板专用挂件 3.镀锌钢龙骨另计 | D29: m2 | E29: 29.42 | F29: 铝板 | G29: 0.00 | I29: 铝单板木纹色转印3mm厚 | J29: m2 | L29: 240 | M29: 0.00 | P29: 0.00 | Q29: 铝板甲控乙供，主材价暂定，按质定价
A30: 24 | B30: 人造绿植墙饰面基层 | C30: 1.镀锌钢龙骨另计 2.18厚防火板柜体基层板 2.定制人造绿植墙饰面另计 3.详见图纸1#-CT-PM-04 | D30: m2 | E30: 171.44 | F30: 防火板 | G30: 0.00 | I30: 防火板 18mm厚 | J30: m2 | M30: 0.00 | P30: 0.00
A31: 25 | B31: 水泥板饰面墙面装饰板 | C31: 1.水泥板装饰饰面 2.镀锌钢龙骨另计 3.18厚防火板柜体基层板另计 4.详见图纸1#-CT-PM-04 | D31: m2 | E31: 431.38 | F31: 水泥板 | G31: 0.00 | I31: 水泥板 | J31: m2 | L31: 65 | M31: 0.00 | P31: 0.00 | Q31: 水泥板甲控乙供，主材价暂定，按质定价
A32: 26 | B32: 挑高处梁饰面-基层 | C32: 1.18厚防火板做梁基层，，暗藏灯带 3.详见图纸1#CT-PM-05 | D32: m | E32: 168 | F32: 防火板 | G32: 0.00 | I32: 防火板 18mm厚 | J32: m2 | M32: 0.00 | P32: 0.00
A33: 27 | B33: 挑高处梁饰面-铝单板面层 | C33: 1.铝单板面层面层木纹色转印3mm厚做梁 2.详见图纸1#CT-PM-05 | D33: m2 | E33: 84.21 | F33: 铝板 | G33: 0.00 | I33: 铝单板木纹色转印3mm厚 | J33: m2 | L33: 240 | M33: 0.00 | P33: 0.00 | Q33: 铝板甲控乙供，主材价暂定，按质定价
A34: 28 | B34: 铝板圆柱包方柱 | C34: 1.铝单板面层面层木纹色转印3mm厚包柱 2.铝单板专用挂件 3.镀锌钢龙骨另计 4.玫瑰金色金属收边条40*20另计 5.详见图纸1#CT-PM-05 | D34: m2 | E34: 93.45 | F34: 铝板 | G34: 0.00 | I34: 铝单板木纹色转印3mm厚 | J34: m2 | L34: 240 | M34: 0.00 | P34: 0.00 | Q34: 铝板甲控乙供，主材价暂定，按质定价
A35: 29 | B35: 弧形铝板包圆柱 | C35: 1.白色弧形铝单板3mm厚，拼接自然缝，内塞密封胶条 2.铝单板专用挂件 4.基层另计 | D35: m2 | E35: 148.16 | F35: 铝板 | G35: 0.00 | I35: 弧形白色铝单板3mm厚 | J35: m2 | L35: 300 | M35: 0.00 | P35: 0.00 | Q35: 铝板甲控乙供，主材价暂定，按质定价
A36: 30 | B36: 金属装饰线 | C36: 1.玫瑰金色金属收边条40*20 | D36: m | E36: 1057.41 | F36: 不锈钢线条 | G36: 0.00 | I36: 玫瑰金色金属收边条40*20 | J36: m | M36: 0.00 | P36: 0.00
A37: 31 | B37: 装饰空心砖造型墙 | C37: 1.装饰空心砖造型墙 2.预埋铁件，上下固定 3.详见图纸1#CT-PM-05 | D37: m2 | E37: 205.2 | F37: 成品空心砖造型墙 | G37: 0.00 | I37: 成品空心砖造型墙 | J37: m2 | L37: 450 | M37: 0.00 | P37: 0.00 | Q37: 成品空心砖造型墙甲控乙供，主材价暂定，按质定价
A38: 32 | B38: 木质门带套 | C38: 1.成品套装双开门，尺寸：1500*2100 2.门五金另计 | D38: 樘 | E38: 4 | F38: 成品套装门 | G38: 0.00 | I38: 成品套装双开门 尺寸：1500*2100 | J38: 樘 | M38: 0.00 | P38: 0.00
A39: 33 | B39: 收银服务台 | C39: 1.收银服务台制作安装，尺寸：3000*1500 2.基层制作,暗藏灯带 3.木饰面台面, 4.深色石材饰面另计,铝板木纹转印饰面另计 4.定制亚克力饰面灯 5.自行深化，详见图纸1#CT-DY-01 | D39: 个 | E39: 2 | F39: 收银服务台 | G39: 0.00 | I39: 收银服务台3000*1500 | J39: 个 | M39: 0.00 | P39: 0.00
A40: 34 | B40: 收银服务台-石材饰面 | C40: 1.收银服务台深色石材饰面 2.详见图纸1#CT-DY-01 | D40: m2 | E40: 5.5 | F40: 石材 | G40: =H40+N40+O40 -> 0.00 | I40: 深色石材 | J40: m2 | L40: / | M40: / | P40: 0.00 | Q40: 石材甲供
A41: 35 | B41: 收银服务台-铝板饰面 | C41: 1.收银服务台铝板木纹转印饰面饰面 2.详见图纸1#CT-DY-01 | D41: m2 | E41: 4.8 | F41: 铝板 | G41: =H41+M41+N41+O41 -> 0.00 | I41: 铝单板木纹色转印3mm厚 | J41: m2 | L41: 240 | M41: =L41*K41 -> 0.00 | P41: 0.00 | Q41: 铝板甲控乙供，主材价暂定，按质定价
A42: 36 | B42: 景观展示台 | C42: 1.服务台制作安装，尺寸：7600*1500 2.基层制作,暗藏灯带, 3.深色石材饰面另计 4.不含定制成品雕塑及成品人造植物等摆件 5.自行深化，详见图纸1#CT-DY-01 | D42: 个 | E42: 2 | F42: 景观展示台 | G42: =H42+M42+N42+O42 -> 0.00 | I42: 景观展示台7600*1500 | J42: 个 | M42: =L42*K42 -> 0.00 | P42: 0.00
A43: 37 | B43: 景观展示台-石材饰面 | C43: 1.景观展示台深色石材饰面 2.详见图纸1#CT-DY-01 | D43: m2 | E43: 10.5 | F43: 石材 | G43: =H43+N43+O43 -> 0.00 | I43: 深色石材 | J43: m2 | L43: / | M43: / | P43: 0.00 | Q43: 石材甲供
A44: 38 | B44: 餐厅03、04
A45: 39 | B45: 石材门槛石 | C45: 1.灰色石材门槛石水泥砂浆粘贴。 | D45: m2 | E45: 3.6 | F45: 石材门槛石 | G45: =H45+N45+O45 -> 0.00 | I45: 灰色石材门槛石 | J45: m2 | L45: / | M45: / | P45: =G45*E45 -> 0.00 | Q45: 石材甲供
A46: 40 | B46: 现浇水磨石楼地面 | C46: 1.水磨石地面800*800mm | D46: m2 | E46: 832.63 | G46: =H46+M46+N46+O46 -> 0.00 | I46: / | L46: / | M46: 0.00 | P46: 0.00
A47: 41 | B47: 竹、木（复合）地板 | C47: 1.木地板。 2.防潮垫。 | D47: m2 | E47: 88 | F47: 木地板 | G47: 0.00 | I47: 木地板 | J47: m2 | L47: 100 | M47: =L47*K47 -> 0.00 | P47: 0.00 | Q47: 木地板甲控乙供，主材价暂定，按质定价
A48: 42 | B48: 灯带（槽） | C48: 1.地台木基层灯带 | D48: m | E48: 34.25 | F48: 防火板 | G48: 0.00 | I48: 防火板 18mm厚 | J48: m2 | M48: 0.00 | P48: 0.00
A49: 43 | B49: 天棚喷刷涂料 | C49: 1.原楼板、梁喷灰色涂料。 | D49: m2 | E49: 790.08 | F49: 乳胶漆 | G49: 0.00 | I49: 黑色乳胶漆 | J49: m2 | M49: 0.00 | P49: 0.00
A50: 44 | B50: 格栅吊顶 | C50: 1.Φ8吊筋，M8膨胀螺栓固定。 2.轻钢主龙骨。 3.铝方通(表面木纹转印处理)间距详见图纸，规格40*250。 4.详见图纸1F-P02、1#CT-PM-01/1 | D50: m2 | E50: 790.08 | F50: 铝方通 | G50: 0.00 | I50: 铝方通(表面木纹转印处理) 规格40*150。 | J50: m | L50: 18 | M50: 0.00 | P50: 0.00 | Q50: 铝方通(表面木纹转印处理)甲控乙供，主材价暂定，按质定价
A51: 45 | B51: 铝板饰面装饰壁柜 | C51: 1.尺寸：680*3650 2.预埋铁件、镀锌方管另计 3.18厚防火板柜体基层板 4.铝板饰面柜体板,玫瑰金色喷涂另计 5.内壁纸面石膏板、膏板外贴壁纸另计 5.铝板饰面柜体隔板,玫瑰金色喷涂另计 6.暗藏LED灯带，灯带另计 7.详见图纸1#CT-PM-05 8.投影面计算 | D51: m2 | E51: 44.68 | F51: 防火板 | G51: 0.00 | I51: 防火板 18mm厚 | J51: m2 | M51: 0.00 | P51: 0.00
A52: 46 | B52: 铝板饰面装饰壁柜-铝板饰面柜体板 | C52: 1.铝板饰面柜体板,玫瑰金色喷涂 2.展开面积计算 | D52: m2 | E52: 88.3 | F52: 铝板 | G52: 0.00 | I52: 铝板玫瑰金色喷涂 | J52: m2 | L52: 240 | M52: 0.00 | P52: 0.00 | Q52: 铝板甲控乙供，主材价暂定，按质定价
A53: 47 | B53: 铝板饰面装饰壁柜-内壁纸面石膏板封板 | C53: 1.纸面石膏板封板 2.展开面积计算 | D53: m2 | E53: 42 | F53: 纸面石膏板 | G53: 0.00 | I53: 纸面石膏板9.5mm | J53: m2 | M53: 0.00 | P53: 0.00
A54: 48 | B54: 铝板饰面装饰壁柜-内壁墙纸 | C54: 1.墙纸专用墙纸胶粘贴 2.展开面积计算 | D54: m2 | E54: 42 | F54: 墙纸 | G54: 0.00 | I54: 墙纸 | J54: m2 | L54: 30 | M54: 0.00 | P54: 0.00 | Q54: 墙纸甲控乙供，主材价暂定，按质定价
A55: 49 | B55: 铝板饰面装饰壁柜-铝板饰面柜体隔板 | C55: 1.镀锌方管龙骨。 2.18厚防火板基层板 4.铝板饰面柜体板,玫瑰金色喷涂 5、暗藏灯带 6.延长米计算 | D55: m | E55: 41 | F55: 铝板 | G55: 0.00 | I55: 铝板玫瑰金色喷涂 | J55: m2 | L55: 240 | M55: 0.00 | P55: 0.00 | Q55: 铝板甲控乙供，主材价暂定，按质定价
A56: 50 | B56: 人造绿植墙饰面基层 | C56: 1.镀锌钢龙骨另计 2.18厚防火板柜体基层板 2.定制人造绿植墙饰面另计 3.详见图纸1#-CT-PM-04 | D56: m2 | E56: 236 | F56: 防火板 | G56: 0.00 | I56: 防火板 18mm厚 | J56: m2 | M56: 0.00 | P56: 0.00
A57: 51 | B57: 铝板圆柱包方柱 | C57: 1.铝单板面层面层木纹色转印3mm厚包柱 2.铝单板专用挂件 3.镀锌钢龙骨另计 4.玫瑰金色金属收边条40*20另计 5.详见图纸1#CT-PM-05 | D57: m2 | E57: 12.85 | F57: 铝板 | G57: 0.00 | I57: 铝单板木纹色转印3mm厚 | J57: m2 | L57: 240 | M57: 0.00 | P57: 0.00 | Q57: 铝板甲控乙供，主材价暂定，按质定价
A58: 52 | B58: 弧形铝板包圆柱 | C58: 1.白色弧形铝单板3mm厚，拼接自然缝，内塞密封胶条 2.铝单板专用挂件 4.基层另计 | D58: m2 | E58: 97 | F58: 铝板 | G58: 0.00 | I58: 弧形白色铝单板3mm厚 | J58: m2 | L58: 300 | M58: 0.00 | P58: 0.00 | Q58: 铝板甲控乙供，主材价暂定，按质定价
A59: 53 | B59: 块料墙面 | C59: 1.凹凸条形砖饰面 2.预镀锌钢龙骨另计 3.不锈钢干挂件干挂 | D59: m2 | E59: 133.52 | F59: 墙砖 | G59: 0.00 | I59: 凹凸条形墙砖 | J59: m2 | L59: 100 | M59: 0.00 | P59: 0.00 | Q59: 凹凸条形墙砖甲控乙供，主材价暂定，按质定价
A60: 54 | B60: 玻璃隔断 | C60: 1.明档式后厨玻璃隔断 2.钢化玻璃10mm厚，玫瑰金不锈钢框20*20 3.玫瑰金不锈钢框60*80mm 4.详见图纸DY-01 | D60: m2 | E60: 24.92 | F60: 玻璃隔断 | G60: 0.00 | I60: 玻璃隔断，玫瑰金边框 | J60: m2 | M60: 0.00 | P60: 0.00
A61: 55 | B61: 明档式后厨地柜 | C61: 1.明档式后厨地柜 2.预埋铁件,40*40镀锌钢骨架,木基层板柜体,暗藏灯带 3.免漆柜体板, 4.灰色石材台面另计 5.详见图纸DY-01 | D61: m | E61: 17.8 | F61: 后厨地柜 | G61: 0.00 | I61: 后厨地柜 | J61: m | M61: 0.00 | P61: 0.00
A62: 56 | B62: 明档式后厨地柜-灰色石材台面 | D62: m2 | E62: 2.5 | F62: 石材 | G62: =H62+N62+O62 -> 0.00 | I62: 灰色石材 | J62: m2 | L62: / | M62: / | P62: 0.00 | Q62: 石材甲供
A63: 57 | B63: 平面、箱式招牌 | C63: 1.明档式后厨定制成品广告灯箱 | D63: m2 | E63: 10.68 | F63: 成品灯箱 | G63: =H63+M63+N63+O63 -> 0.00 | I63: 成品灯箱 | J63: m2 | M63: =L63*K63 -> 0.00 | P63: 0.00
A64: 58 | B64: 金属门窗套基层 | C64: 1.明档式后厨窗口套 2.预埋铁件,镀锌型钢骨架另计 3.防火板基层, 4.玫瑰金不锈钢饰面另计 | D64: m2 | E64: 51.94 | F64: 防火板 | G64: =H64+M64+N64+O64 -> 0.00 | I64: 防火板 18mm厚 | J64: m2 | M64: =L64*K64 -> 0.00 | P64: 0.00
A65: 59 | B65: 金属门窗套-玫瑰金不锈钢饰面 | C65: 1.玫瑰金不锈钢饰面 2.计算方式，展开面积 | D65: m2 | E65: 51.94 | F65: 玫瑰金不锈钢饰面 | G65: =H65+M65+N65+O65 -> 0.00 | I65: 玫瑰金不锈钢饰面1.0 | J65: m2 | M65: =L65*K65 -> 0.00 | P65: 0.00
A66: 60 | B66: 木质门带套 | C66: 1.成品套装双开门，尺寸：1500*2100 2.门五金另计 | D66: 樘 | E66: 4 | F66: 成品套装门 | G66: =H66+M66+N66+O66 -> 0.00 | I66: 成品套装双开门 尺寸：1500*2100 | J66: 樘 | M66: =L66*K66 -> 0.00 | P66: 0.00
A67: 61 | B67: 景观展示台 | C67: 1.服务台制作安装，尺寸：7600*1500 2.基层制作,暗藏灯带, 3.深色石材饰面另计 4.不含定制成品雕塑及成品人造植物等摆件 5.自行深化，详见图纸1#CT-DY-01 | D67: 个 | E67: 2 | F67: 景观展示台 | G67: =H67+M67+N67+O67 -> 0.00 | I67: 景观展示台7600*1500 | J67: 个 | M67: =L67*K67 -> 0.00 | P67: 0.00
A68: 62 | B68: 景观展示台-石材饰面 | C68: 1.景观展示台深色石材饰面 2.详见图纸1#CT-DY-01 | D68: m2 | E68: 10.5 | F68: 石材 | G68: =H68+N68+O68 -> 0.00 | I68: 深色石材 | J68: m2 | L68: / | M68: / | P68: 0.00 | Q68: 石材甲供
A69: 63 | B69: 1#、2#卫生间4个
A70: 64 | B70: 现浇水磨石楼地面 | C70: 1.水磨石地面800*800mm | D70: m2 | E70: 28.17 | G70: =H70+M70+N70+O70 -> 0.00 | I70: / | L70: / | M70: 0.00 | P70: =G70*E70 -> 0.00
A71: 65 | B71: 块料楼地面 | C71: 1.防滑地砖600*600水泥砂浆粘贴。 | D71: m2 | E71: 36.91 | F71: 地砖 | G71: =H71+N71+O71 -> 0.00 | I71: 防滑地砖 规格600*600 | J71: m2 | L71: / | M71: / | P71: 0.00 | Q71: 地砖主材甲供
A72: 66 | B72: 吊顶天棚 | C72: 1.Φ8吊筋，M8膨胀螺栓固定。 2.轻钢主龙骨、副龙、连接件。 3.双层防水9.5mm纸面石膏板。 4.自粘胶带、腻子、乳胶漆另计。 | D72: m2 | E72: 65.08 | F72: 纸面石膏板 | G72: =H72+M72+N72+O72 -> 0.00 | I72: 防水9.5mm纸面石膏板 | J72: m2 | M72: =L72*K72 -> 0.00 | P72: 0.00
A73: 67 | B73: 灯带（槽） | C73: 1.Φ8吊筋，M8膨胀螺栓固定。 2.阻燃夹板、双层防水9.5mm纸面石膏板。 3.自粘胶带、腻子、乳胶漆另计。 5.尺寸300+120+80。 | D73: m | E73: 40 | F73: 纸面石膏板 | G73: 0.00 | I73: 防水9.5mm纸面石膏板 | J73: m2 | M73: =L73*K73 -> 0.00 | P73: 0.00
A74: 68 | B74: 开孔（打洞） | C74: 1.石膏板开灯孔。 | D74: 个 | E74: 60 | G74: 0.00 | I74: / | L74: / | M74: 0.00 | P74: 0.00
A75: 69 | B75: 开孔（打洞） | C75: 1.石膏板开出风口孔。 | D75: 个 | E75: 24 | G75: 0.00 | I75: / | L75: / | M75: 0.00 | P75: 0.00
A76: 70 | B76: 送风口、回风口 | C76: 1.木基层风口基层。 2.木基层防火涂料。 3.成品风口。 | D76: 个 | E76: 24 | G76: 0.00 | I76: / | L76: / | M76: 0.00 | P76: 0.00
A77: 71 | B77: 石材墙面 | C77: 1.水泥砂浆粘贴。 2.水磨石石材规格600*600 | D77: m2 | E77: 245 | F77: 水磨石石材 | G77: 0.00 | I77: 水磨石石材规格600*600 | J77: m2 | L77: 350 | M77: =L77*K77 -> 0.00 | P77: 0.00 | Q77: 水磨石石材甲控乙供，主材价暂定，按质定价
A78: 72 | B78: 块料墙面 | C78: 1.墙面300*600灰色墙砖水泥砂浆粘贴。 2.密封 | D78: m2 | E78: 350 | F78: 墙砖 | G78: 0.00 | I78: 墙砖 规格300*600 | J78: m2 | L78: / | M78: 0.00 | P78: 0.00 | Q78: 墙砖甲供
A79: 73 | B79: 洗漱台 | C79: 1.高度250mm,挡水板高度50mm。 2.型钢骨架，水磨石石材台面。 3.台盆开工、磨边，挡水条及阳角倒角、磨边。 4.详见图纸 | D79: m2 | E79: 9.8 | F79: 水磨石石材 | G79: 0.00 | I79: 水磨石石材 | J79: m2 | L79: 350 | M79: =L79*K79 -> 0.00 | P79: 0.00 | Q79: 水磨石石材石材甲控乙供，主材价暂定，按质定价
A80: 74 | B80: 镜面玻璃 | C80: 1.木工板基层、暗藏灯带、银镜玻璃 2.玫瑰金不锈钢收边10mm宽 | D80: m2 | E80: 3.5 | F80: 成品银镜 | G80: 0.00 | I80: MR-01银镜玻璃 | J80: m2 | M80: 0.00 | P80: 0.00
A81: 75 | B81: 成品隔断 | C81: 1.卫生间蹲坑成品隔断间。 2.含五金。 | D81: 间 | E81: 16 | F81: 成品隔断 | G81: 0.00 | I81: 木饰面成品隔断间 | J81: 间 | M81: 0.00 | P81: 0.00
A82: 76 | B82: 成品隔断 | C82: 1.卫生间成品小便斗隔断。 | D82: 套 | E82: 8 | F82: 小便斗隔断 | G82: 0.00 | I82: 小便斗隔断 | J82: 套 | M82: 0.00 | P82: 0.00
A83: 77 | B83: 木质门带套 | C83: 1.成品套装单开门，尺寸：1000*2100 2.门五金另计 | D83: 樘 | E83: 14 | F83: 成品套装门 | G83: 0.00 | I83: 成品套装单开门 尺寸：1000*2070 | J83: 樘 | M83: 0.00 | P83: 0.00
A84: 78 | B84: 金属门窗套基层 | C84: 1.防火板基层 2.不锈钢门套另计 | D84: m2 | E84: 4.8 | F84: 防火板 | G84: 0.00 | I84: 防火板 18mm厚 | J84: m2 | M84: 0.00 | P84: 0.00
A85: 79 | B85: 金属门窗套-不锈钢饰面 | C85: 1.不锈钢门套 | D85: m2 | E85: 4.8 | F85: 玫瑰金不锈钢饰面 | G85: 0.00 | I85: 玫瑰金不锈钢饰面1.0 | J85: m2 | M85: 0.00 | P85: 0.00
A86: 80 | B86: 卫生纸盒 | C86: 1.不锈钢纸盒 | D86: 个 | E86: 16 | F86: 不锈钢纸盒 | G86: 0.00 | I86: 不锈钢纸盒 | J86: 个 | M86: 0.00 | P86: =G86*'游客中心-装饰'!E64 -> 0.00
A87: 81 | B87: 卫生间扶手 | C87: 1.坐便器残疾人扶手 | D87: 副 | E87: 4 | F87: 残疾人扶手 | G87: 0.00 | I87: 洗漱台残疾人扶手 | J87: 套 | M87: 0.00 | P87: =G87*E87 -> 0.00
A88: 82 | B88: 餐厅厨房、明档式厨房
A89: 83 | B89: 石材门槛石 | C89: 1.石材门槛石水泥砂浆粘贴。 | D89: m2 | E89: 2.64 | F89: 石材门槛石 | G89: =H89+N89+O89 -> 0.00 | I89: 灰色石材门槛石 | J89: m2 | L89: / | M89: / | P89: =G89*E89 -> 0.00 | Q89: 石材甲供
A90: 84 | B90: 块料楼地面 | C90: 1.防滑地砖600*600水泥砂浆粘贴。 | D90: m2 | E90: 416.9 | F90: 地砖 | G90: =H90+N90+O90 -> 0.00 | I90: 防滑地砖 规格600*600 | J90: m2 | L90: / | M90: / | P90: =G90*E90 -> 0.00 | Q90: 地砖主材甲供
A91: 85 | B91: 吊顶天棚 | C91: 1.Φ8吊筋，M8膨胀螺栓固定。 2.铝合金扣板轻钢龙骨。 3.600*600铝扣板吊顶。 | D91: m2 | E91: 416.9 | F91: 铝扣板 | G91: =H91+M91+N91+O91 -> 0.00 | I91: MT-04白色铝扣板 | J91: m2 | M91: =L91*K91 -> 0.00 | P91: =G91*E91 -> 0.00
A92: 86 | B92: 块料墙面 | C92: 1.300*600灰色墙砖水泥砂浆粘贴。 2.密封 | D92: m2 | E92: 697.79 | F92: 墙砖 | G92: =H92+M92+N92+O92 -> 0.00 | I92: 墙砖 规格300*600 | J92: m2 | L92: / | M92: 0.00 | P92: =G92*E92 -> 0.00 | Q92: 墙砖甲供
A93: 87 | B93: 1#-4#楼梯间
A94: 88 | B94: 石材门槛石 | C94: 1.石材门槛石水泥砂浆粘贴。 | D94: m2 | E94: 4.5 | F94: 石材门槛石 | G94: =H94+N94+O94 -> 0.00 | I94: 灰色石材门槛石 | J94: m2 | L94: / | M94: / | P94: =G94*E94 -> 0.00 | Q94: 石材甲供
A95: 89 | B95: 现浇水磨石楼地面 | C95: 1.水磨石地面台阶面 | D95: m2 | E95: 268 | G95: =H95+M95+N95+O95 -> 0.00 | I95: / | L95: / | M95: 0.00 | P95: =G95*E95 -> 0.00
A96: 90 | B96: 金属扶手、栏杆、栏板 | C96: 1.楼梯栏杆扶手。 2.做法暂定。 | D96: m | E96: 135 | F96: 栏杆扶手 | G96: =M96 -> 400.00 | I96: 栏杆扶手（含安装） | J96: m | K96: 1 | L96: 400 | M96: =L96*K96 -> 400.00 | N96: / | O96: / | P96: =G96*E96 -> 54000.00 | Q96: 栏杆扶手甲控乙供，单价暂定，按质定价
A97: 91 | B97: 天棚喷刷涂料 | C97: 1.两遍腻子。 2.两遍PT-01白色乳胶漆。 | D97: m2 | E97: 79.57 | F97: 乳胶漆 | G97: =H97+M97+N97+O97 -> 0.00 | I97: 黑色乳胶漆 | J97: m2 | M97: =L97*K97 -> 0.00 | P97: =G97*E97 -> 0.00
A98: 92 | B98: 生活泵房、消控中心、配电间、储藏间
A99: 93 | B99: 石材门槛石 | C99: 1.灰色石材门槛石水泥砂浆粘贴。 | D99: m2 | E99: 4.4 | F99: 石材门槛石 | G99: =H99+N99+O99 -> 0.00 | I99: 灰色石材门槛石 | J99: m2 | L99: / | M99: / | P99: =G99*E99 -> 0.00 | Q99: 石材甲供
A100: 94 | B100: 块料楼地面 | C100: 1.玻化地砖800*800水泥砂浆粘贴。 | D100: m2 | E100: 281.87 | F100: 地砖 | G100: =H100+N100+O100 -> 0.00 | I100: 玻化地砖 规格800*800 | J100: m2 | L100: / | M100: / | P100: 0.00 | Q100: 地砖主材甲供
A101: 95 | B101: 块料踢脚线 | C101: 1.地砖踢脚线水泥砂浆粘贴。 | D101: m | E101: 241 | F101: 地砖踢脚线 | G101: =H101+N101+O101 -> 0.00 | I101: 地砖踢脚线 | J101: m | L101: / | M101: / | P101: 0.00 | Q101: 地砖踢脚线甲供
A102: 96 | B102: 吊顶天棚 | C102: 1.Φ8吊筋，M8膨胀螺栓固定。 2.轻钢主龙骨、副龙、连接件。 3.双层防水9.5mm纸面石膏板。 4.自粘胶带、腻子、乳胶漆另计。 | D102: m2 | E102: 160.56 | F102: 纸面石膏板 | G102: =H102+M102+N102+O102 -> 0.00 | I102: 防水9.5mm纸面石膏板 | J102: m2 | M102: =L102*K102 -> 0.00 | P102: 0.00
A103: 97 | B103: 吊顶天棚 | C103: 1.Φ8吊筋，M8膨胀螺栓固定。 2.轻钢主龙骨、副龙、连接件。 3.双层9.5mm纸面石膏板。 4.自粘胶带、腻子、乳胶漆另计。 | D103: m2 | E103: 110.15 | F103: 纸面石膏板 | G103: =H103+M103+N103+O103 -> 0.00 | I103: 纸面石膏板9.5mm厚 | J103: m2 | M103: =L103*K103 -> 0.00 | P103: 0.00
A104: 98 | B104: 5.基础施工工项 | P104: 0.00
A105: 99 | B105: 涂膜防水 | C105: 1.JS涂抹防水两遍。 2.综合墙地面 | D105: m2 | E105: 874.41 | F105: 防水涂料 | G105: =H105+M105+N105+O105 -> 0.00 | I105: JS | J105: m2 | M105: =L105*K105 -> 0.00 | P105: 0.00
A106: 100 | B106: 砌砖墙 | C106: 1.水泥砖水泥砂浆砌120mm墙 | D106: m3 | F106: 水泥砖 | G106: 0.00 | I106: 水泥砖 | J106: m3 | M106: =L106*K106 -> 0.00 | P106: 0.00
A107: 101 | B107: 砌砖墙 | C107: 1.水泥砖水泥砂浆砌240mm墙 | D107: m3 | F107: 水泥砖 | G107: 0.00 | I107: 水泥砖 | J107: m3 | M107: =L107*K107 -> 0.00 | P107: 0.00
A108: 102 | B108: 零星砌体 | C108: 1.水泥砖水泥砂浆砌蹲坑等零星砌体 | D108: m3 | E108: 11.6 | F108: 水泥砖 | G108: 0.00 | I108: 水泥砖 | J108: m3 | M108: =L108*K108 -> 0.00 | P108: 0.00
A109: 103 | B109: 水泥砂浆抹灰 | C109: 1.墙面水泥砂浆抹灰找平 | D109: m2 | E109: 23.2 | G109: 0.00 | I109: / | L109: / | M109: 0.00 | P109: 0.00
A110: 104 | B110: 水泥砂浆找平层 | C110: 1.20mm水泥砂浆找平 | D110: m2 | E110: =355+3794 -> 4149 | G110: 0.00 | I110: / | L110: / | M110: 0.00 | P110: 0.00
A111: 105 | B111: 镀锌方钢龙骨 | C111: 1.预埋铁件，镀锌方钢龙骨 2.焊点防锈处理 | D111: t | E111: 15.320 | F111: 钢材 | G111: 0.00 | I111: 镀锌方钢 | J111: t | M111: =L111*K111 -> 0.00 | P111: 0.00
A112: 106 | B112: 镀锌方钢龙骨（龙骨弧形折弯处理） | C112: 1.预埋铁件，镀锌方钢龙骨 2.龙骨弧形折弯处理 3.焊点防锈处理 | D112: t | E112: 3.440 | F112: 钢材 | G112: 0.00 | I112: 镀锌方钢 | J112: t | M112: 0.00 | P112: 0.00
A113: 107 | B113: 镀锌型钢转换层 | C113: 1.预埋铁件，镀锌型钢转换层 2.焊点防锈处理 | D113: t | E113: 4.000 | F113: 钢材 | G113: 0.00 | I113: 镀锌方钢 | J113: t | M113: 0.00 | P113: 0.00
A114: 108 | B114: 防火板封板 | C114: 1.防火板18mm厚 2.综合墙面、顶面 | D114: m2 | E114: 431 | F114: 防火板 | G114: 0.00 | I114: 防火板 18mm厚 | J114: m2 | M114: 0.00 | P114: 0.00
A115: 109 | B115: 纸面石膏板封板 | C115: 1.纸面石膏板9.5mm 2.综合墙面、顶面 | D115: m2 | E115: 120 | F115: 纸面石膏板 | G115: 0.00 | I115: 纸面石膏板9.5mm厚 | J115: m2 | M115: 0.00 | P115: 0.00
A116: 110 | B116: 木饰面 | C116: 1.成品木饰面安装 | D116: m2 | E116: 45 | F116: 木饰面 | G116: 0.00 | I116: 木饰面 | J116: m2 | L116: 320 | M116: 0.00 | P116: 0.00 | Q116: 木饰面甲控乙供，主材价暂定，按质定价
A117: 111 | B117: 自粘胶带密封 | C117: 1.石膏板面自粘胶带密封，自攻钉防锈处理。 | D117: m2 | E117: 220 | G117: 0.00 | I117: / | L117: / | M117: 0.00 | P117: 0.00
A118: 112 | B118: 基层批腻子腻子 | C118: 1.腻子两遍 2.综合墙、顶面及抹灰面、石膏板面 | D118: m2 | E118: =294.57+120 -> 414.57 | F118: 腻子 | G118: 0.00 | I118: 腻子 | J118: m2 | M118: =L118*K118 -> 0.00 | P118: 0.00
A119: 113 | B119: 乳胶漆 | C119: 1.两遍PT-01白色乳胶漆 2.综合墙面、顶面 | D119: m2 | E119: 294.57 | F119: 乳胶漆 | G119: 0.00 | I119: PT-01白色乳胶漆 | J119: m2 | M119: 0.00 | P119: 0.00
A120: 114 | B120: 防潮乳胶漆 | C120: 1.两遍PT-02白色防水防潮乳胶漆 2.综合墙面、顶面 | D120: m2 | E120: 120 | F120: 乳胶漆 | G120: 0.00 | I120: PT-02白色防水防潮乳胶漆 | J120: m2 | M120: 0.00 | P120: 0.00
A121: 115 | B121: 门铰链 | C121: 1.平开门铰链安装 | D121: 套 | E121: =16*3 -> 48 | F121: 五金 | G121: 0.00 | I121: 平开门铰链 | J121: 套 | M121: 0.00 | P121: 0.00
A122: 116 | B122: 门执手锁 | C122: 1.平开门执手锁安装 | D122: 套 | E122: 22 | F122: 五金 | G122: 0.00 | I122: 平开门执手锁 | J122: 套 | M122: 0.00 | P122: 0.00
A123: 117 | B123: 门吸 | C123: 1.平开门门吸安装 | D123: 套 | E123: 30 | F123: 五金 | G123: 0.00 | I123: 平开门门吸 | J123: 套 | M123: 0.00 | P123: 0.00
A124: 118 | B124: 门插销 | C124: 1.平开门插销安装 | D124: 套 | E124: 8 | F124: 五金 | G124: 0.00 | I124: 平开门插销 | J124: 套 | M124: 0.00 | P124: 0.00
A125: 119 | B125: 轻钢龙骨双面石膏板隔墙 | C125: 1.75型轻钢龙骨 2.隔音棉 3.双面单层纸面石膏板9.5mm | D125: m2 | E125: 120 | F125: 纸面石膏板 | G125: 0.00 | I125: 纸面石膏板9.5mm厚 | J125: m2 | M125: 0.00 | P125: 0.00
A126: 120 | B126: 石膏板封堵洞口 | C126: 1.木基层 2.单层纸面石膏板9.5mm | D126: m2 | E126: 100 | F126: 纸面石膏板 | G126: 0.00 | I126: 单层纸面石膏板9.5mm | J126: m2 | M126: 0.00 | P126: 0.00
A127: 121 | B127: 砌体封堵洞口 | C127: 1.水泥砖水泥砂浆封堵 | D127: m2 | E127: 25 | F127: 水泥砖 | G127: 0.00 | I127: 水泥砖 | J127: m2 | M127: 0.00 | P127: 0.00
A128: 122 | B128: 石材地面抛光 | C128: 1.石材面做缝、修补、抛光 | D128: m2 | E128: 450 | G128: 0.00 | I128: / | L128: / | M128: 0.00 | P128: 0.00
A129: 123 | B129: 小计 | P129: =SUM(P3:P128) -> 54000.00
A130: 124 | B130: 计费明细 | C130: 管理费 | D130: 项 | E130: 4% | P130: =P129*E130 -> 2160.00
A131: 125 | C131: 利润 | D131: 项 | E131: 10% | P131: =P129*E131 -> 5400.00
A132: 126 | C132: 税金 | D132: 项 | E132: 9% | P132: =(P131+P130+P129)*E132 -> 5540.40
A133: 127 | B133: 工程总造价 | P133: =P132+P131+P130+P129 -> 67100.40
A134: 1、综合单价为包含人工费（包括人员加班工资、差旅及窝工费）、材料费、机械费、风险的包工包料价格，包含深化设计、监理资料及竣工图绘制费用，包括水电、卸货、材料保管、二次搬运、上楼、各种保险、加班、临时设施、赶工措施、已完工项目成品保护措施、夜间照明、安全文明施工等费用，施工人员的食宿费、劳保费用、办公费、生活生产水电费、保险费也包含在报价里。其中：主材费单价包含主要材料费、运输费、运输损耗费、施工损耗费。施工单价包含人工费、机械费及除主要材料费以外辅材及其他所有费用。
A135: 2、报价税率按9%考虑，提供9%税率的增值税专用发票。
A136: 3、甲控乙供材料按提供的单价暂定，投标时价格不可调整，施工过程中投标人送样，招标人按质定价。
B137: 投标单位（公章）：
B138: 授权委托人：
B139: 日 期： 2020 年 月 日

Sheet 花园餐厅安装
A1: 安装工程量报价清单
A2: 工程名称：第四届中国绿博会花园餐厅装饰装修专业分包工程
A3: 序号 | B3: 分项工程名称 | C3: 项目特征 | D3: 单位 | E3: 数量 | F3: 主材名称 | G3: 综合单价 | H3: 其 中： | P3: 合价 | Q3: 备注
H4: 人工费 | I4: 材 料 费
I5: 主材费 | O5: 机械费
I6: 名称及规格 | J6: 单位 | K6: 单位耗量 | L6: 单价 | M6: 单位主材费合价 | N6: 辅材
A7: 1 | B7: 电气工程
A8: 2 | B8: 配电箱 | C8: 1.名称：配电柜AP 2.规格：详见图纸 3.安装方式：落地安装 | D8: 台 | E8: 8 | F8: 配电箱 | G8: 230 | I8: 配电箱 | J8: 套 | L8: / | M8: 0 | P8: 1840.00 | Q8: 配电箱甲供
A9: 3 | B9: 配电箱 | C9: 1.名称：应急照明箱ALE1 2.规格：详见图纸 3.安装方式：落地安装 | D9: 台 | E9: 4 | F9: 配电箱 | G9: 230 | I9: 配电箱 | J9: 套 | L9: / | M9: 0 | P9: 920.00 | Q9: 配电箱甲供
A10: 4 | B10: 配电箱 | C10: 1.名称：空调VRV1配电箱 2.规格：详见图纸 3.安装方式：落地安装 | D10: 台 | E10: 4 | F10: 配电箱 | G10: 230 | I10: 配电箱 | J10: 套 | L10: / | M10: 0 | P10: 920.00 | Q10: 配电箱甲供
A11: 5 | B11: 配电箱 | C11: 1.名称：消控中心电柜AT-XF 2.规格：详见图纸 3.安装方式：落地安装 | D11: 台 | E11: 1 | F11: 配电箱 | G11: 230 | I11: 配电箱 | J11: 套 | L11: / | M11: 0 | P11: 230.00 | Q11: 配电箱甲供
A12: 6 | B12: 配电箱 | C12: 1.名称：给水泵动力配电柜AT-SHSB 2.规格：详见图纸 3.安装方式：挂墙明装 | D12: 台 | E12: 1 | F12: 配电箱 | G12: 230 | I12: 配电箱 | J12: 套 | L12: / | M12: 0 | P12: 230.00 | Q12: 配电箱甲供
A13: 7 | B13: 配电柜 | C13: 1.名称：消防电源柜AT-XFBF 2.规格：详见图纸 3.安装方式：落地安装 | D13: 组 | E13: 1 | F13: 配电柜 | G13: 1200 | I13: 配电柜 | J13: 套 | L13: / | M13: 0 | P13: 1200.00 | Q13: 配电柜甲供
A14: 8 | B14: 凿（压)槽 | C14: 1.名称:砖墙开槽 2.填充(恢复)方式:水泥砂浆恢复 | D14: m | E14: 272.4 | F14: / | G14: =H14+M14+N14+O14 -> 0 | I14: / | J14: / | M14: =L14*K14 -> 0 | P14: =G14*E14 -> 0.00
A15: 9 | B15: 配管 | C15: 1.名称:硬塑料管（PVC） 2.规格:PC20 3.配置形式:砖、混凝土结构暗配 | D15: m | E15: 250 | F15: PVC电线管 | G15: 0 | I15: PVC电线管20 | J15: m | M15: 0 | P15: 0.00
A16: 10 | B16: 配管 | C16: 1.名称:硬塑料管（PVC） 2.规格:PC20 3.配置形式:砖、混凝土结构明配 | D16: m | E16: 450 | F16: PVC电线管 | G16: 0 | I16: PVC电线管20 | J16: m | M16: 0 | P16: 0.00
A17: 11 | B17: 配管 | C17: 1.名称:硬塑料管（PVC） 2.规格:PC25 3.配置形式:砖、混凝土结构暗配 | D17: m | E17: 360 | F17: PVC电线管 | G17: 0 | I17: PVC电线管25 | J17: m | M17: 0 | P17: 0.00
A18: 12 | B18: 配管 | C18: 1.名称:硬塑料管（PVC） 2.规格:PC25 3.配置形式:砖、混凝土结构明配 | D18: m | E18: 1650 | F18: PVC电线管 | G18: 0 | I18: PVC电线管25 | J18: m | M18: 0 | P18: 0.00
A19: 13 | B19: 配管 | C19: 1.名称:硬塑料管（PVC） 2.规格:PC32 3.配置形式:砖、混凝土结构暗配 | D19: m | E19: 220 | F19: PVC电线管 | G19: 0 | I19: PVC电线管32 | J19: m | M19: 0 | P19: 0.00
A20: 14 | B20: 配管 | C20: 1.名称:硬塑料管（PVC） 2.规格:PC32 3.配置形式:砖、混凝土结构明配 | D20: m | E20: 450 | F20: PVC电线管 | G20: 0 | I20: PVC电线管32 | J20: m | M20: 0 | P20: 0.00
A21: 15 | B21: 配管 | C21: 1.名称:紧定式镀锌钢导管 2.规格:JDG20 3.配置形式:砖、混凝土结构暗配 | D21: m | E21: 85 | F21: 紧定式镀锌钢导管 | G21: 0 | I21: 紧定式镀锌钢导管20 | J21: m | M21: 0 | P21: 0.00
A22: 16 | B22: 配管 | C22: 1.名称:紧定式镀锌钢导管 2.规格:JDG20 3.配置形式:砖、混凝土结构明配 | D22: m | E22: 75 | F22: 紧定式镀锌钢导管 | G22: 0 | I22: 紧定式镀锌钢导管20 | J22: m | M22: 0 | P22: 0.00
A23: 17 | B23: 配管 | C23: 1.名称:紧定式镀锌钢导管 2.规格:JDG40 3.配置形式:砖、混凝土结构暗配 | D23: m | E23: 65 | F23: 紧定式镀锌钢导管 | G23: 0 | I23: 紧定式镀锌钢导管40 | J23: m | M23: 0 | P23: 0.00
A24: 18 | B24: 配管 | C24: 1.名称:紧定式镀锌钢导管 2.规格:JDG40 3.配置形式:砖、混凝土结构明配 | D24: m | E24: 85 | F24: 紧定式镀锌钢导管 | G24: 0 | I24: 紧定式镀锌钢导管40 | J24: m | M24: 0 | P24: 0.00
A25: 19 | B25: 配管 | C25: 1.名称:紧定式镀锌钢导管 2.规格:JDG50 3.配置形式:砖、混凝土结构暗配 | D25: m | E25: 95 | F25: 紧定式镀锌钢导管 | G25: 0 | I25: 紧定式镀锌钢导管50 | J25: m | M25: 0 | P25: 0.00
A26: 20 | B26: 配管 | C26: 1.名称:紧定式镀锌钢导管 2.规格:JDG50 3.配置形式:砖、混凝土结构明配 | D26: m | E26: 65 | F26: 紧定式镀锌钢导管 | G26: 0 | I26: 紧定式镀锌钢导管50 | J26: m | M26: 0 | P26: 0.00
A27: 21 | B27: 桥架 | C27: 1.名称:钢制桥架 2.规格:300*150 | D27: m | E27: 96 | F27: 桥架 | G27: 0 | I27: 成品镀锌钢桥架300*150 | J27: m | M27: 0 | P27: 0.00
A28: 22 | B28: 桥架 | C28: 1.名称:钢制桥架 2.规格:200*100 | D28: m | E28: 45 | F28: 桥架 | G28: 0 | I28: 成品镀锌钢桥架200*100 | J28: m | M28: 0 | P28: 0.00
A29: 23 | B29: 电力电缆 | C29: 1.名称:铜芯电缆 2.型号:WDZ-YJV-4*35+1*16 3.敷设方式、部位:穿管 | D29: m | E29: 65 | F29: 铜芯电缆 | G29: 0 | I29: DZ-YJV-4*35+1*16 3.敷设方式、 | J29: m | M29: 0 | P29: 0.00
A30: 24 | B30: 电力电缆 | C30: 1.名称:铜芯电缆 2.型号:WDZ-BYJ-4*25+1*16 3.敷设方式、部位:穿管 | D30: m | E30: 78 | F30: 铜芯电缆 | G30: 0 | I30: WDZ-BYJ-4*25+1*16 | J30: m | M30: 0 | P30: 0.00
A31: 25 | B31: 电力电缆 | C31: 1.名称:铜芯电缆 2.型号:WDZN-YJV-4*25 3.敷设方式、部位:穿管 | D31: m | E31: 68 | F31: 铜芯电缆 | G31: 0 | I31: WDZN-YJV-4*25 | J31: m | M31: 0 | P31: 0.00
A32: 26 | B32: 电力电缆 | C32: 1.名称:铜芯电缆 2.型号:WDZ-YJV-5*16 3.敷设方式、部位:穿管 | D32: m | E32: 77 | F32: 铜芯电缆 | G32: 0 | I32: WDZ-YJV-5*16 | J32: m | M32: 0 | P32: 0.00
A33: 27 | B33: 电力电缆 | C33: 1.名称:铜芯电缆 2.型号:WDZ-YJV-5*10 3.敷设方式、部位:穿管 | D33: m | E33: 65 | F33: 铜芯电缆 | G33: 0 | I33: WDZ-YJV-5*10 | J33: m | M33: 0 | P33: 0.00
A34: 28 | B34: 电力电缆 | C34: 1.名称:铜芯电缆 2.型号:NG-A-5*6 3.敷设方式、部位:穿管 | D34: m | E34: 120 | F34: 铜芯电缆 | G34: 0 | I34: NG-A-5*6 | J34: m | M34: 0 | P34: 0.00
A35: 29 | B35: 配线 | C35: 1.名称:铜芯电线 2.型号:WDZ-BYJ-10 | D35: m | E35: 150 | F35: 铜芯电线 | G35: 0 | I35: WDZ-BYJ-10 | J35: m | M35: 0 | P35: 0.00
A36: 30 | B36: 配线 | C36: 1.名称:铜芯电线 2.型号:WDZ-BYJ-10 | D36: m | E36: 890 | F36: 铜芯电线 | G36: 0 | I36: WDZ-BYJ-10 | J36: m | M36: 0 | P36: 0.00
A37: 31 | B37: 配线 | C37: 1.名称:铜芯电线 2.型号:WDZN-BYJ-6 | D37: m | E37: 650 | F37: 铜芯电线 | G37: 0 | I37: WDZN-BYJ-6 | J37: m | M37: 0 | P37: 0.00
A38: 32 | B38: 配线 | C38: 1.名称:铜芯电线 2.型号:WDZN-BYJ-6 | D38: m | E38: 750 | F38: 铜芯电线 | G38: 0 | I38: WDZN-BYJ-6 | J38: m | M38: 0 | P38: 0.00
A39: 33 | B39: 配线 | C39: 1.名称:铜芯电线 2.型号:WDZ-BYJ-4 | D39: m | E39: 3260 | F39: 铜芯电线 | G39: 0 | I39: WDZ-BYJ-4 | J39: m | M39: 0 | P39: 0.00
A40: 34 | B40: 配线 | C40: 1.名称:铜芯电线 2.型号:WDZN-BYJ-4 | D40: m | E40: 460 | F40: 铜芯电线 | G40: 0 | I40: DZN-BYJ-4 | J40: m | M40: 0 | P40: 0.00
A41: 35 | B41: 配线 | C41: 1.名称:铜芯电线 2.型号:WDZ-BYJ-2.5 | D41: m | E41: 1450 | F41: 铜芯电线 | G41: 0 | I41: WDZ-BYJ-2.5 | J41: m | M41: 0 | P41: 0.00
A42: 36 | B42: 配线 | C42: 1.名称:铜芯电线 2.型号:WDZN-BYJ-2.5 | D42: m | E42: 1650 | F42: 铜芯电线 | G42: 0 | I42: WDZN-BYJ-2.5 | J42: m | M42: 0 | P42: 0.00
A43: 37 | B43: 电力电缆头 | C43: 1.名称:成套型电缆头 2.规格:电缆截面35mm2以下 | D43: 个 | E43: 75 | F43: 电缆头 | G43: 0 | I43: 电缆头截面35mm2以下 | J43: 个 | M43: 0 | P43: 0.00
A44: 38 | B44: 接线盒 | C44: 1.名称:接线盒 2.材质:镀锌 | D44: 个 | E44: 320 | F44: 镀锌接线盒 | G44: 0 | I44: 镀锌接线盒 | J44: 个 | M44: 0 | P44: 0.00
A45: 39 | B45: 装饰灯具安装 | C45: 1.名称:成品装饰吊灯 2.类型:LED | D45: 套 | E45: 36 | F45: 灯具 | G45: 0 | I45: 成品装饰吊灯 | J45: 套 | L45: 450 | M45: 0 | P45: 0.00 | Q45: 成品装饰吊灯甲控乙供，主材价暂定，按质定价
A46: 40 | B46: 装饰灯具安装 | C46: 1.名称:成品装饰吸顶灯 2.类型:LED | D46: 套 | E46: 15 | F46: 灯具 | G46: 0 | I46: 成品装饰吸顶灯 | J46: 套 | L46: 250 | M46: 0 | P46: 0.00 | Q46: 成品装饰吸顶灯甲控乙供，主材价暂定，按质定价
A47: 41 | B47: 普通灯具 | C47: 1.名称:双头斗胆灯 2.类型:LED | D47: 套 | E47: 464 | F47: 灯具 | G47: 0 | I47: 双头斗胆灯 | J47: 套 | M47: 0 | P47: 0.00
A48: 42 | B48: 普通灯具 | C48: 1.名称:单头斗胆灯 2.类型:LED | D48: 套 | E48: 84 | F48: 灯具 | G48: 0 | I48: 双头斗胆灯 | J48: 套 | M48: 0 | P48: 0.00
A49: 43 | B49: 普通灯具 | C49: 1.名称:嵌入式筒灯 2.类型:LED | D49: 套 | E49: 45 | F49: 灯具 | G49: 0 | I49: 嵌入式筒灯 | J49: 套 | M49: 0 | P49: 0.00
A50: 44 | B50: 普通灯具 | C50: 1.名称:嵌入式防潮筒灯 2.类型:LED | D50: 套 | E50: 25 | F50: 灯具 | G50: 0 | I50: 嵌入式防潮筒灯 | J50: 套 | M50: 0 | P50: 0.00
A51: 45 | B51: 普通灯具 | C51: 1.名称:600*600面板灯 2.类型:LED | D51: 套 | E51: 51 | F51: 灯具 | G51: 0 | I51: 600*600面板灯 | J51: 套 | M51: 0 | P51: 0.00
A52: 46 | B52: 普通灯具 | C52: 1.名称:灯带 2.类型:LED | D52: m | E52: 360 | F52: 灯具 | G52: 0 | I52: LED灯带 | J52: m | M52: 0 | P52: 0.00
A53: 47 | B53: 普通灯具 | C53: 1.名称:应急照明筒灯 2.类型:LED | D53: 套 | E53: 38 | F53: 灯具 | G53: =H53+M53+N53+O53 -> 0 | I53: 应急照明筒灯 | J53: 套 | M53: 0 | P53: =G53*E53 -> 0.00
A54: 48 | B54: 普通灯具 | C54: 1.名称:应急照明格栅灯 2.类型:LED | D54: 套 | E54: 6 | F54: 灯具 | G54: 0 | I54: 应急照明格栅灯 | J54: 套 | M54: 0 | P54: 0.00
A55: 49 | B55: 普通灯具 | C55: 1.名称:应急照明挂壁式 2.类型:LED | D55: 套 | E55: 45 | F55: 灯具 | G55: 0 | I55: 应急照明挂壁式 | J55: 套 | M55: 0 | P55: 0.00
A56: 50 | B56: 普通灯具 | C56: 1.名称:应急出口指示灯 2.类型:LED | D56: 套 | E56: 88 | F56: 灯具 | G56: 0 | I56: 应急出口指示灯 | J56: 套 | M56: 0 | P56: 0.00
A57: 51 | B57: 小电器 | C57: 1.名称:单联单控开关 | D57: 个 | E57: 45 | F57: 开关 | G57: 0 | I57: 单联单控开关 | J57: 个 | M57: =H57*K57 -> 0 | P57: 0.00
A58: 52 | B58: 小电器 | C58: 1.名称:双联单控开关 | D58: 个 | E58: 22 | F58: 开关 | G58: 0 | I58: 双联单控开关 | J58: 个 | M58: 0 | P58: 0.00
A59: 53 | B59: 小电器 | C59: 1.名称:三联单控开关 | D59: 个 | E59: 32 | F59: 开关 | G59: 0 | I59: 三联单控开关 | J59: 个 | M59: 0 | P59: 0.00
A60: 54 | B60: 小电器 | C60: 1.名称:单联双控开关 | D60: 个 | E60: 31 | F60: 开关 | G60: 0 | I60: 单联双控开关 | J60: 个 | M60: 0 | P60: 0.00
A61: 55 | B61: 小电器 | C61: 1.名称:地面铜插座 2.型号:15A | D61: 个 | E61: 20 | F61: 插座 | G61: 0 | I61: 地面铜插座 | J61: 个 | M61: 0 | P61: 0.00
A62: 56 | B62: 小电器 | C62: 1.名称:五孔普通插座 2.型号:15A | D62: 个 | E62: 56 | F62: 插座 | G62: 0 | I62: 五孔普通插座 | J62: 个 | M62: 0 | P62: 0.00
A63: 57 | B63: 小电器 | C63: 1.名称:轴流排风扇 | D63: 个 | E63: 12 | F63: 轴流排风扇 | G63: 0 | I63: 轴流排风扇 | J63: 个 | M63: 0 | P63: 0.00
A64: 58 | B64: 网络、电视、电话 | G64: 0 | M64: =L64*K64 -> 0 | P64: 0.00
A65: 59 | B65: 光缆终端盒 | C65: 1.弱电箱 | D65: 个 | E65: 3 | F65: 弱电箱 | G65: 0 | I65: 弱电箱 | J65: 个 | M65: 0 | P65: 0.00
A66: 60 | B66: 配线 | C66: 1.名称:视频同轴电缆 2.配线形式:穿管 | D66: m | E66: 425 | F66: 同轴电缆 | G66: 0 | I66: 视频同轴电缆 | J66: m | M66: 0 | P66: 0.00
A67: 61 | B67: 配线 | C67: 1.名称:双绞线（6芯） 2.配线形式:穿管 | D67: m | E67: 320 | F67: 双绞线 | G67: 0 | I67: 双绞线（6芯） | J67: m | M67: 0 | P67: 0.00
A68: 62 | B68: 小电器 | C68: 1.名称:有线电视插座 2.安装方式:墙面安装 | D68: 个 | E68: 20 | F68: 插座 | G68: 0 | I68: 有线电视插座 | J68: 个 | M68: 0 | P68: 0.00
A69: 63 | B69: 小电器 | C69: 1.名称:网络插座单口 2.安装方式:墙面安装 | D69: 个 | E69: 12 | F69: 插座 | G69: 0 | I69: 网络插座单口 | J69: 个 | M69: 0 | P69: 0.00
A70: 64 | B70: 小电器 | C70: 1.名称:网络插座单口 2.安装方式:地面安装 | D70: 个 | E70: 12 | F70: 插座 | G70: 0 | I70: 网络插座单口 | J70: 个 | M70: 0 | P70: 0.00
A71: 65 | B71: 给排水、洁具安装工程 | M71: 0 | P71: 0.00
A72: 66 | B72: 塑料管 | C72: 1.材质、规格:PPR管DN20 2.连接形式:热熔 3.压力试验及吹、洗设计要求:符合规范及设计要求 | D72: m | E72: 120 | F72: PPR管 | G72: =H72+M72+N72+O72 -> 0 | I72: PPR管DN20 | J72: m | M72: 0 | P72: 0.00
A73: 67 | B73: 塑料管 | C73: 1.材质、规格:PPR管DN25 2.连接形式:热熔 3.压力试验及吹、洗设计要求:符合规范及设计要求 | D73: m | E73: 80 | F73: PPR管 | G73: 0 | I73: PPR管DN25 | J73: m | M73: 0 | P73: 0.00
A74: 68 | B74: 塑料管 | C74: 1.材质、规格:PPR管DN32 2.连接形式:热熔 3.压力试验及吹、洗设计要求:符合规范及设计要求 | D74: m | E74: 60 | F74: PPR管 | G74: 0 | I74: PPR管DN32 | J74: m | M74: 0 | P74: 0.00
A75: 69 | B75: 塑料管 | C75: 1.材质、规格:U-PVCP排水管Φ50 2.连接形式:胶粘 3.压力试验及吹、洗设计要求:符合规范及设计要求 | D75: m | E75: 110 | F75: 排水管 | G75: 0 | I75: U-PVCP排水管Φ50 | J75: m | M75: 0 | P75: 0.00
A76: 70 | B76: 塑料管 | C76: 1.材质、规格:U-PVCP排水管Φ75 2.连接形式:胶粘 3.压力试验及吹、洗设计要求:符合规范及设计要求 | D76: m | E76: 120 | F76: 排水管 | G76: 0 | I76: U-PVCP排水管Φ75 | J76: m | M76: 0 | P76: 0.00
A77: 71 | B77: 塑料管 | C77: 1.材质、规格:U-PVCP排水管Φ110 2.连接形式:胶粘 3.压力试验及吹、洗设计要求:符合规范及设计要求 | D77: m | E77: 220 | F77: 排水管 | G77: 0 | I77: U-PVCP排水管Φ110 | J77: m | M77: 0 | P77: 0.00
A78: 72 | B78: 洗脸盆 | C78: 1.材质:陶瓷 2.规格、类型:嵌入式台上式洗脸盆 3.附件名称、数量:含下水 | D78: 组 | E78: 22 | F78: 洗脸盆 | G78: =H78+M78+N78+O78 -> 0 | I78: 嵌入式台上式洗脸盆 | J78: 组 | L78: 550 | M78: 0 | P78: 0.00 | Q78: 嵌入式台上式洗脸盆甲控乙供，主材价暂定，按质定价
A79: 73 | B79: 洗脸盆龙头 | C79: 1.台上盆冷热水龙头 | D79: 套 | E79: 22 | F79: 台上盆冷热水龙头 | G79: 0 | I79: 台上盆冷热水龙头 | J79: 套 | L79: 350 | M79: 0 | P79: 0.00 | Q79: 台上盆冷热水龙头甲控乙供，主材价暂定，按质定价
A80: 74 | B80: 大便器 | C80: 1.材质:陶瓷 2.规格、类型:蹲便器 | D80: 组 | E80: 28 | F80: 蹲便器 | G80: 0 | I80: 蹲便器 | J80: 组 | L80: 350 | M80: 0 | P80: 0.00 | Q80: 蹲便器甲控乙供，主材价暂定，按质定价
A81: 75 | B81: 大便器脚踏阀 | C81: 1.大便器脚踏阀 | D81: 套 | E81: 28 | F81: 大便器脚踏阀 | G81: 0 | I81: 大便器脚踏阀 | J81: 套 | L81: 90 | M81: 0 | P81: 0.00 | Q81: 大便器脚踏阀甲控乙供，主材价暂定，按质定价
A82: 76 | B82: 大便器 | C82: 1.材质:陶瓷 2.规格、类型:坐便器 | D82: 组 | E82: 4 | F82: 坐便器 | G82: 0 | I82: 坐便器 | J82: 组 | L82: 2800 | M82: 0 | P82: 0.00 | Q82: 坐便器甲控乙供，主材价暂定，按质定价
A83: 77 | B83: 小便器 | C83: 1.材质:陶瓷 2.规格、类型:成品小便斗 | D83: 组 | E83: 12 | F83: 成品小便斗 | G83: 0 | I83: 感应阀 | J83: 组 | L83: 680 | M83: 0 | P83: 0.00 | Q83: 感应阀甲控乙供，主材价暂定，按质定价
A84: 78 | B84: 小便器感应阀 | C84: 1.小便器感应阀 | D84: 组 | E84: 12 | F84: 小便器感应阀 | G84: 0 | I84: 小便器感应阀 | J84: 组 | L84: 320 | M84: 0 | P84: 0.00 | Q84: 小便器感应阀甲控乙供，主材价暂定，按质定价
A85: 79 | B85: 烘手器 | C85: 1.型号、规格:成品烘手器 | D85: 个 | E85: 6 | F85: 成品烘手器 | G85: 0 | I85: 成品烘手器 | J85: 个 | L85: 220 | M85: 0 | P85: 0.00 | Q85: 成品烘手器甲控乙供，主材价暂定，按质定价
A86: 80 | B86: 洗涤盆 | C86: 1.材质:陶瓷 2.规格、类型:拖把池 | D86: 组 | E86: 6 | F86: 拖把池 | G86: 0 | I86: 拖把池 | J86: 组 | L86: 450 | M86: 0 | P86: 0.00 | Q86: 拖把池甲控乙供，主材价暂定，按质定价
A87: 81 | B87: 小计 | P87: =SUM(P3:P86) -> 5340.00
A88: 82 | B88: 计费明细 | C88: 管理费 | D88: 项 | E88: 4% | P88: =P87*E88 -> 213.60
A89: 83 | C89: 利润 | D89: 项 | E89: 10% | P89: =P87*E89 -> 534.00
A90: 84 | C90: 税金 | D90: 项 | E90: 9% | P90: =(P89+P88+P87)*E90 -> 547.88
A91: 85 | B91: 工程总造价 | P91: =P90+P89+P88+P87 -> 6635.48
A92: 1、综合单价为包含人工费（包括人员加班工资、差旅及窝工费）、材料费、机械费、风险的包工包料价格，包含深化设计、监理资料及竣工图绘制费用，包括水电、卸货、材料保管、二次搬运、上楼、各种保险、加班、临时设施、赶工措施、已完工项目成品保护措施、夜间照明、安全文明施工等费用，施工人员的食宿费、劳保费用、办公费、生活生产水电费、保险费也包含在报价里。其中：主材费单价包含主要材料费、运输费、运输损耗费、施工损耗费。施工单价包含人工费、机械费及除主要材料费以外辅材及其他所有费用。
A93: 2、报价税率按9%考虑，提供9%税率的增值税专用发票。
A94: 3、甲控乙供材料按提供的单价暂定，投标时价格不可调整，施工过程中投标人送样，招标人按质定价。
B95: 投标单位（公章）：
B96: 授权委托人：
B97: 日 期： 2020 年 月 日

Sheet 花园餐厅措施费
A1: 措施费项目计价表
A2: 工程名称：第四届中国绿博会花园餐厅装饰装修专业分包工程
A3: 序号 | B3: 项目名称 | C3: 单位 | D3: 数量 | E3: 金额（元） | F3: 备注
A4: 1 | B4: 安全文明施工费 | C4: 项 | D4: 1 | F4: 专项包干费
A5: 2 | B5: 成品保护费 | C5: 项 | D5: 1 | F5: 专项包干费
A6: 3 | B6: 开荒清洁、垃圾清运费 | C6: 项 | D6: 1 | F6: 专项包干费
A7: 4 | B7: 临时设施费 | C7: 项 | D7: 1 | F7: 专项包干费
A8: 5 | B8: 专业交叉施工增加费 | C8: 项 | D8: 1 | F8: 专项包干费
A9: 6 | B9: 脚手架 | C9: 项 | D9: 1 | F9: 专项包干费
A10: 7 | B10: 运杂费（二次搬运费等） | C10: 项 | D10: 1 | F10: 专项包干费
A11: 8 | B11: 其它配合费 | C11: 项 | D11: 1 | F11: 专项包干费
A12: 10 | B12: 工地开放日保洁 | C12: 项 | D12: 1 | F12: 专项包干费
B13: 合价 | E13: =(SUM(E4:E12))*0.7 -> 0.00
A15: 说明： | B15: 措施费用各项应为含税包干报价，不因任何情况调整，措施费按实际发生计取，不发生不计取。。
B18: 投标单位（公章）：
B19: 授权委托人：
B20: 日 期： 2020 年 月 日
